{"text_format":"3","workbook":"xlsx","n_sheets":4,"sheets":["Resultatuppföljning","Dina resultat","Inställningar","Beräkningar"],"not_rendered":{"defined_names":3,"comments":1},"read":"whole","date_system":"1900"}

{"sheet":"Resultatuppföljning","index":0,"n_rows":14,"n_cols":6,"rows_kept":14}
[null,"Mata in dina resultat här"]
[]
[null,null,"Kurs","Typ","Beskrivning","Resultat"]
[null,null,"Modern franska","Hemuppgifter","Andra världskrigshistoria",{"v":0.8,"d":"80%"}]
[null,null,"Avancerad Java-programmering","Mitten på terminen",null,{"v":0.75,"d":"75%"}]
[null,null,"Spanska","Hemuppgifter",null,{"v":0.5,"d":"50%"}]
[null,null,"Teoretisk fysik","Hemuppgifter",null,{"v":0.95,"d":"95%"}]
[null,null,"Modern franska","Hemuppgifter","Andra världskrigshistoria",{"v":0.9,"d":"90%"}]
[null,null,"Modern franska","Hemuppgifter","Sida 30–41",{"v":0.8,"d":"80%"}]
[null,null,"Uppsats","Essä","Skriftlig argumentframställning",{"v":0.95,"d":"95%"}]
[null,null,"Matematik 1","Hemuppgifter","Sida 21 och 26",{"v":0.8,"d":"80%"}]
[null,null,"Matematik 2","Hemuppgifter","Sida 15 och 18",{"v":0.85,"d":"85%"}]
[null,null,"Matematik 1","Hemuppgifter","Sida 34–36",{"v":0.8,"d":"80%"}]
[null,null,"Matematik 2","Förhör",null,{"v":0.95,"d":"95%"}]

{"sheet":"Dina resultat","index":1,"n_rows":31,"n_cols":8,"rows_kept":31}
[null,"Dina resultat"]
[]
[null,null,"Summor"]
[null,null,{"$f":"\"Tider: \"&SUM(tabell_kurser[Kurstimmar])","v":"Tider: 24"},{"$f":"AVERAGE(D7:D31)","v":{"v":0.8104761904761906,"d":"81%"}},{"$f":"AVERAGE(E7:E31)","v":{"v":2.7142857142857144,"d":"2.71"}},{"$f":"SUM(F7:F31)","v":{"v":2.625,"d":"2.63"}},{"$f":"IFERROR(HLOOKUP(D4,lista_medelbetyg_kartläggning,2),\"\")","v":"B-"}]
[]
[null,null,"Kurser","%","Medelbetyg","Viktat medelbetyg","Bokstav","Övergripande utvärdering"]
[null,null,{"$f":"Beräkningar!C6","v":"Modern franska"},{"$f":"Beräkningar!AL6","v":{"v":0.8333333333333334,"d":"83%"}},{"$f":"Beräkningar!AM6","v":{"v":3,"d":"3.00"}},{"$f":"IFERROR(E7*Inställningar!D9/SUM(tabell_kurser[Kurstimmar]),\"\")","v":{"v":0.375,"d":"0.38"}},{"$f":"Beräkningar!AN6","v":"B"}]
[null,null,{"$f":"Beräkningar!C7","v":"Teoretisk fysik"},{"$f":"Beräkningar!AL7","v":{"v":0.95,"d":"95%"}},{"$f":"Beräkningar!AM7","v":{"v":4,"d":"4.00"}},{"$f":"IFERROR(E8*Inställningar!D10/SUM(tabell_kurser[Kurstimmar]),\"\")","v":{"v":0.5,"d":"0.50"}},{"$f":"Beräkningar!AN7","v":"A"}]
[null,null,{"$f":"Beräkningar!C8","v":"Matematik 1"},{"$f":"Beräkningar!AL8","v":{"v":0.8000000000000002,"d":"80%"}},{"$f":"Beräkningar!AM8","v":2.67},{"$f":"IFERROR(E9*Inställningar!D11/SUM(tabell_kurser[Kurstimmar]),\"\")","v":{"v":0.445,"d":"0.45"}},{"$f":"Beräkningar!AN8","v":"B-"}]
[null,null,{"$f":"Beräkningar!C9","v":"Matematik 2"},{"$f":"Beräkningar!AL9","v":{"v":0.89,"d":"89%"}},{"$f":"Beräkningar!AM9","v":3.33},{"$f":"IFERROR(E10*Inställningar!D12/SUM(tabell_kurser[Kurstimmar]),\"\")","v":{"v":0.555,"d":"0.56"}},{"$f":"Beräkningar!AN9","v":"B+"}]
[null,null,{"$f":"Beräkningar!C10","v":"Avancerad Java-programmering"},{"$f":"Beräkningar!AL10","v":{"v":0.7500000000000001,"d":"75%"}},{"$f":"Beräkningar!AM10","v":{"v":2,"d":"2.00"}},{"$f":"IFERROR(E11*Inställningar!D13/SUM(tabell_kurser[Kurstimmar]),\"\")","v":{"v":0.4166666666666667,"d":"0.42"}},{"$f":"Beräkningar!AN10","v":"C"}]
[null,null,{"$f":"Beräkningar!C11","v":"Spanska"},{"$f":"Beräkningar!AL11","v":{"v":0.5,"d":"50%"}},{"$f":"Beräkningar!AM11","v":{"v":0,"d":"0.00"}},{"$f":"IFERROR(E12*Inställningar!D14/SUM(tabell_kurser[Kurstimmar]),\"\")","v":{"v":0,"d":"0.00"}},{"$f":"Beräkningar!AN11","v":"F"}]
[null,null,{"$f":"Beräkningar!C12","v":"Uppsats"},{"$f":"Beräkningar!AL12","v":{"v":0.95,"d":"95%"}},{"$f":"Beräkningar!AM12","v":{"v":4,"d":"4.00"}},{"$f":"IFERROR(E13*Inställningar!D15/SUM(tabell_kurser[Kurstimmar]),\"\")","v":{"v":0.3333333333333333,"d":"0.33"}},{"$f":"Beräkningar!AN12","v":"A"}]
[null,null,{"$f":"Beräkningar!C13","v":""},{"$f":"Beräkningar!AL13","v":""},{"$f":"Beräkningar!AM13","v":""},{"$f":"IFERROR(E14*Inställningar!D16/SUM(tabell_kurser[Kurstimmar]),\"\")","v":""},{"$f":"Beräkningar!AN13","v":""}]
[null,null,{"$f":"Beräkningar!C14","v":""},{"$f":"Beräkningar!AL14","v":""},{"$f":"Beräkningar!AM14","v":""},{"$f":"IFERROR(E15*Inställningar!D17/SUM(tabell_kurser[Kurstimmar]),\"\")","v":""},{"$f":"Beräkningar!AN14","v":""}]
[null,null,{"$f":"Beräkningar!C15","v":""},{"$f":"Beräkningar!AL15","v":""},{"$f":"Beräkningar!AM15","v":""},{"$f":"IFERROR(E16*Inställningar!D18/SUM(tabell_kurser[Kurstimmar]),\"\")","v":""},{"$f":"Beräkningar!AN15","v":""}]
[null,null,{"$f":"Beräkningar!C16","v":""},{"$f":"Beräkningar!AL16","v":""},{"$f":"Beräkningar!AM16","v":""},{"$f":"IFERROR(E17*Inställningar!D19/SUM(tabell_kurser[Kurstimmar]),\"\")","v":""},{"$f":"Beräkningar!AN16","v":""}]
[null,null,{"$f":"Beräkningar!C17","v":""},{"$f":"Beräkningar!AL17","v":""},{"$f":"Beräkningar!AM17","v":""},{"$f":"IFERROR(E18*Inställningar!D20/SUM(tabell_kurser[Kurstimmar]),\"\")","v":""},{"$f":"Beräkningar!AN17","v":""}]
[null,null,{"$f":"Beräkningar!C18","v":""},{"$f":"Beräkningar!AL18","v":""},{"$f":"Beräkningar!AM18","v":""},{"$f":"IFERROR(E19*Inställningar!D21/SUM(tabell_kurser[Kurstimmar]),\"\")","v":""},{"$f":"Beräkningar!AN18","v":""}]
[null,null,{"$f":"Beräkningar!C19","v":""},{"$f":"Beräkningar!AL19","v":""},{"$f":"Beräkningar!AM19","v":""},{"$f":"IFERROR(E20*Inställningar!D22/SUM(tabell_kurser[Kurstimmar]),\"\")","v":""},{"$f":"Beräkningar!AN19","v":""}]
[null,null,{"$f":"Beräkningar!C20","v":""},{"$f":"Beräkningar!AL20","v":""},{"$f":"Beräkningar!AM20","v":""},{"$f":"IFERROR(E21*Inställningar!D23/SUM(tabell_kurser[Kurstimmar]),\"\")","v":""},{"$f":"Beräkningar!AN20","v":""}]
[null,null,{"$f":"Beräkningar!C21","v":""},{"$f":"Beräkningar!AL21","v":""},{"$f":"Beräkningar!AM21","v":""},{"$f":"IFERROR(E22*Inställningar!D24/SUM(tabell_kurser[Kurstimmar]),\"\")","v":""},{"$f":"Beräkningar!AN21","v":""}]
[null,null,{"$f":"Beräkningar!C22","v":""},{"$f":"Beräkningar!AL22","v":""},{"$f":"Beräkningar!AM22","v":""},{"$f":"IFERROR(E23*Inställningar!D25/SUM(tabell_kurser[Kurstimmar]),\"\")","v":""},{"$f":"Beräkningar!AN22","v":""}]
[null,null,{"$f":"Beräkningar!C23","v":""},{"$f":"Beräkningar!AL23","v":""},{"$f":"Beräkningar!AM23","v":""},{"$f":"IFERROR(E24*Inställningar!D26/SUM(tabell_kurser[Kurstimmar]),\"\")","v":""},{"$f":"Beräkningar!AN23","v":""}]
[null,null,{"$f":"Beräkningar!C24","v":""},{"$f":"Beräkningar!AL24","v":""},{"$f":"Beräkningar!AM24","v":""},{"$f":"IFERROR(E25*Inställningar!D27/SUM(tabell_kurser[Kurstimmar]),\"\")","v":""},{"$f":"Beräkningar!AN24","v":""}]
[null,null,{"$f":"Beräkningar!C25","v":""},{"$f":"Beräkningar!AL25","v":""},{"$f":"Beräkningar!AM25","v":""},{"$f":"IFERROR(E26*Inställningar!D28/SUM(tabell_kurser[Kurstimmar]),\"\")","v":""},{"$f":"Beräkningar!AN25","v":""}]
[null,null,{"$f":"Beräkningar!C26","v":""},{"$f":"Beräkningar!AL26","v":""},{"$f":"Beräkningar!AM26","v":""},{"$f":"IFERROR(E27*Inställningar!D29/SUM(tabell_kurser[Kurstimmar]),\"\")","v":""},{"$f":"Beräkningar!AN26","v":""}]
[null,null,{"$f":"Beräkningar!C27","v":""},{"$f":"Beräkningar!AL27","v":""},{"$f":"Beräkningar!AM27","v":""},{"$f":"IFERROR(E28*Inställningar!D30/SUM(tabell_kurser[Kurstimmar]),\"\")","v":""},{"$f":"Beräkningar!AN27","v":""}]
[null,null,{"$f":"Beräkningar!C28","v":""},{"$f":"Beräkningar!AL28","v":""},{"$f":"Beräkningar!AM28","v":""},{"$f":"IFERROR(E29*Inställningar!D31/SUM(tabell_kurser[Kurstimmar]),\"\")","v":""},{"$f":"Beräkningar!AN28","v":""}]
[null,null,{"$f":"Beräkningar!C29","v":""},{"$f":"Beräkningar!AL29","v":""},{"$f":"Beräkningar!AM29","v":""},{"$f":"IFERROR(E30*Inställningar!D32/SUM(tabell_kurser[Kurstimmar]),\"\")","v":""},{"$f":"Beräkningar!AN29","v":""}]
[null,null,{"$f":"Beräkningar!C30","v":""},{"$f":"Beräkningar!AL30","v":""},{"$f":"Beräkningar!AM30","v":""},{"$f":"IFERROR(E31*Inställningar!D33/SUM(tabell_kurser[Kurstimmar]),\"\")","v":""},{"$f":"Beräkningar!AN30","v":""}]

{"sheet":"Inställningar","index":2,"n_rows":15,"n_cols":16,"rows_kept":15,"merged":[[5,2,5,15]]}
[null,"Inställningar"]
[null,null,"Resultat och kartläggning av medelbetyg"]
[null,null,"Procentandel",{"v":0,"d":"0%"},{"v":0.6,"d":"60%"},{"v":0.63,"d":"63%"},{"v":0.67,"d":"67%"},{"v":0.7,"d":"70%"},{"v":0.73,"d":"73%"},{"v":0.77,"d":"77%"},{"v":0.8,"d":"80%"},{"v":0.83,"d":"83%"},{"v":0.87,"d":"87%"},{"v":0.9,"d":"90%"},{"v":0.93,"d":"93%"},{"v":0.97,"d":"97%"}]
[null,null,"Bokstavsbetyg","F","D-","D","D+","C-","C","C+","B-","B","B+","A-","A","A+"]
[null,null,"Medelbetyg",0,0.67,1,1.33,1.67,2,2.33,2.67,3,3.33,3.67,4,4]
[]
[null,null,"Viktat resultat för upp till 25 kurser"]
[null,null,"Kurser som du går på","Kurstimmar","Hemuppgifter","Essä","Förhör","Projekt","Mitten på terminen","Tentamen","Övriga","% summa"]
[null,null,"Modern franska",{"v":3,"d":"3.0"},{"v":0.1,"d":"10%"},{"v":0.15,"d":"15%"},{"v":0.15,"d":"15%"},{"v":0.1,"d":"10%"},{"v":0.2,"d":"20%"},{"v":0.3,"d":"30%"},null,{"$f":"SUM(tabell_kurser[[#This Row],[Hemuppgifter]:[Övriga]])","v":{"v":1,"d":"100%"}}]
[null,null,"Teoretisk fysik",{"v":3,"d":"3.0"},{"v":0.15,"d":"15%"},{"v":0.15,"d":"15%"},{"v":0.1,"d":"10%"},{"v":0.1,"d":"10%"},{"v":0.15,"d":"15%"},{"v":0.3,"d":"30%"},{"v":0.05,"d":"5%"},{"$f":"SUM(tabell_kurser[[#This Row],[Hemuppgifter]:[Övriga]])","v":{"v":1,"d":"100%"}}]
[null,null,"Matematik 1",{"v":4,"d":"4.0"},{"v":0.1,"d":"10%"},{"v":0.15,"d":"15%"},{"v":0.15,"d":"15%"},{"v":0.1,"d":"10%"},{"v":0.2,"d":"20%"},{"v":0.3,"d":"30%"},null,{"$f":"SUM(tabell_kurser[[#This Row],[Hemuppgifter]:[Övriga]])","v":{"v":1,"d":"100%"}}]
[null,null,"Matematik 2",{"v":4,"d":"4.0"},{"v":0.15,"d":"15%"},{"v":0.15,"d":"15%"},{"v":0.1,"d":"10%"},{"v":0.1,"d":"10%"},{"v":0.15,"d":"15%"},{"v":0.3,"d":"30%"},{"v":0.05,"d":"5%"},{"$f":"SUM(tabell_kurser[[#This Row],[Hemuppgifter]:[Övriga]])","v":{"v":1,"d":"100%"}}]
[null,null,"Avancerad Java-programmering",{"v":5,"d":"5.0"},{"v":0.15,"d":"15%"},{"v":0.15,"d":"15%"},{"v":0.1,"d":"10%"},{"v":0.1,"d":"10%"},{"v":0.2,"d":"20%"},{"v":0.3,"d":"30%"},null,{"$f":"SUM(tabell_kurser[[#This Row],[Hemuppgifter]:[Övriga]])","v":{"v":1,"d":"100%"}}]
[null,null,"Spanska",{"v":3,"d":"3.0"},{"v":0.1,"d":"10%"},{"v":0.15,"d":"15%"},{"v":0.17,"d":"17%"},{"v":0.13,"d":"13%"},{"v":0.2,"d":"20%"},{"v":0.2,"d":"20%"},{"v":0.05,"d":"5%"},{"$f":"SUM(tabell_kurser[[#This Row],[Hemuppgifter]:[Övriga]])","v":{"v":1,"d":"100%"}}]
[null,null,"Uppsats",{"v":2,"d":"2.0"},{"v":0.15,"d":"15%"},{"v":0.15,"d":"15%"},{"v":0.12,"d":"12%"},{"v":0.15,"d":"15%"},{"v":0.15,"d":"15%"},{"v":0.25,"d":"25%"},{"v":0.03,"d":"3%"},{"$f":"SUM(tabell_kurser[[#This Row],[Hemuppgifter]:[Övriga]])","v":{"v":1,"d":"100%"}}]

{"sheet":"Beräkningar","index":3,"n_rows":657,"n_cols":40,"rows_kept":657,"hidden":true}
[null,"Beräkningar"]
[null,null,"Det här kalkylbladet innehåller beräkningar av resultat och medelbetyg och du ska behålla det dolt. Eventuella ändringar i det här bladet kan leda till fel."]
[]
[null,null,"Aktuell kurslista","Betyg (av 1)",{"$nulls":24},"Betygsberäkning"]
[null,null,"Kurs",1,2,3,4,5,6,7,8,9,10,11,12,13,14,15,16,17,18,19,20,21,22,23,24,25,{"$f":"tabell_kurser[[#Headers],[Hemuppgifter]]","v":"Hemuppgifter"},{"$f":"tabell_kurser[[#Headers],[Essä]]","v":"Essä"},{"$f":"tabell_kurser[[#Headers],[Förhör]]","v":"Förhör"},{"$f":"tabell_kurser[[#Headers],[Projekt]]","v":"Projekt"},{"$f":"tabell_kurser[[#Headers],[Mitten på terminen]]","v":"Mitten på terminen"},{"$f":"tabell_kurser[[#Headers],[Tentamen]]","v":"Tentamen"},{"$f":"tabell_kurser[[#Headers],[Övriga]]","v":"Övriga"},"Summa","Summa möjliga poäng","Summa %","Betygspoäng","Bokstavsbetyg"]
[null,null,{"$f":"IF(Inställningar!C9=\"\",\"\",Inställningar!C9)","v":"Modern franska"},{"$f":"IFERROR(INDEX(tabell_kursresultat[],MATCH($C6:$C30&D$5:AB$5,Beräkningar!$C$33:$C$657,0),4),\"\")","v":{"v":0.8,"d":"80%"}},{"v":0.9,"d":"90%"},{"v":0.8,"d":"80%"},"","","","","","","","","","","","","","","","","","","","","","",{"$f":"IFERROR(AVERAGEIFS(tabell_kursresultat[Resultat],tabell_kursresultat[Kurs],Beräkningar!$C6,tabell_kursresultat[Typ],Beräkningar!AC$5)*Inställningar!E9,\"\")","v":0.08333333333333334},{"$f":"IFERROR(AVERAGEIFS(tabell_kursresultat[Resultat],tabell_kursresultat[Kurs],Beräkningar!$C6,tabell_kursresultat[Typ],Beräkningar!AD$5)*Inställningar!F9,\"\")","v":""},{"$f":"IFERROR(AVERAGEIFS(tabell_kursresultat[Resultat],tabell_kursresultat[Kurs],Beräkningar!$C6,tabell_kursresultat[Typ],Beräkningar!AE$5)*Inställningar!G9,\"\")","v":""},{"$f":"IFERROR(AVERAGEIFS(tabell_kursresultat[Resultat],tabell_kursresultat[Kurs],Beräkningar!$C6,tabell_kursresultat[Typ],Beräkningar!AF$5)*Inställningar!H9,\"\")","v":""},{"$f":"IFERROR(AVERAGEIFS(tabell_kursresultat[Resultat],tabell_kursresultat[Kurs],Beräkningar!$C6,tabell_kursresultat[Typ],Beräkningar!AG$5)*Inställningar!I9,\"\")","v":""},{"$f":"IFERROR(AVERAGEIFS(tabell_kursresultat[Resultat],tabell_kursresultat[Kurs],Beräkningar!$C6,tabell_kursresultat[Typ],Beräkningar!AH$5)*Inställningar!J9,\"\")","v":""},{"$f":"IFERROR(AVERAGEIFS(tabell_kursresultat[Resultat],tabell_kursresultat[Kurs],Beräkningar!$C6,tabell_kursresultat[Typ],Beräkningar!AI$5)*Inställningar!K9,\"\")","v":""},{"$f":"SUM(AC6:AI6)","v":0.08333333333333334},{"$f":"SUMIFS(Inställningar!E9:K9,Beräkningar!AC6:AI6,\">0\")","v":0.1},{"$f":"IFERROR(AJ6/AK6,\"\")","v":{"v":0.8333333333333334,"d":"83%"}},{"$f":"IFERROR(HLOOKUP(AL6,lista_medelbetyg_kartläggning,3),\"\")","v":3},{"$f":"IFERROR(HLOOKUP(AL6,lista_medelbetyg_kartläggning,2),\"\")","v":"B"}]
[null,null,{"$f":"IF(Inställningar!C10=\"\",\"\",Inställningar!C10)","v":"Teoretisk fysik"},{"v":0.95,"d":"95%"},"","","","","","","","","","","","","","","","","","","","","","","","",{"$f":"IFERROR(AVERAGEIFS(tabell_kursresultat[Resultat],tabell_kursresultat[Kurs],Beräkningar!$C7,tabell_kursresultat[Typ],Beräkningar!AC$5)*Inställningar!E10,\"\")","v":0.1425},{"$f":"IFERROR(AVERAGEIFS(tabell_kursresultat[Resultat],tabell_kursresultat[Kurs],Beräkningar!$C7,tabell_kursresultat[Typ],Beräkningar!AD$5)*Inställningar!F10,\"\")","v":""},{"$f":"IFERROR(AVERAGEIFS(tabell_kursresultat[Resultat],tabell_kursresultat[Kurs],Beräkningar!$C7,tabell_kursresultat[Typ],Beräkningar!AE$5)*Inställningar!G10,\"\")","v":""},{"$f":"IFERROR(AVERAGEIFS(tabell_kursresultat[Resultat],tabell_kursresultat[Kurs],Beräkningar!$C7,tabell_kursresultat[Typ],Beräkningar!AF$5)*Inställningar!H10,\"\")","v":""},{"$f":"IFERROR(AVERAGEIFS(tabell_kursresultat[Resultat],tabell_kursresultat[Kurs],Beräkningar!$C7,tabell_kursresultat[Typ],Beräkningar!AG$5)*Inställningar!I10,\"\")","v":""},{"$f":"IFERROR(AVERAGEIFS(tabell_kursresultat[Resultat],tabell_kursresultat[Kurs],Beräkningar!$C7,tabell_kursresultat[Typ],Beräkningar!AH$5)*Inställningar!J10,\"\")","v":""},{"$f":"IFERROR(AVERAGEIFS(tabell_kursresultat[Resultat],tabell_kursresultat[Kurs],Beräkningar!$C7,tabell_kursresultat[Typ],Beräkningar!AI$5)*Inställningar!K10,\"\")","v":""},{"$f":"SUM(AC7:AI7)","v":0.1425},{"$f":"SUMIFS(Inställningar!E10:K10,Beräkningar!AC7:AI7,\">0\")","v":0.15},{"$f":"IFERROR(AJ7/AK7,\"\")","v":{"v":0.95,"d":"95%"}},4,"A"]
[null,null,{"$f":"IF(Inställningar!C11=\"\",\"\",Inställningar!C11)","v":"Matematik 1"},{"v":0.8,"d":"80%"},{"v":0.8,"d":"80%"},"","","","","","","","","","","","","","","","","","","","","","","",{"$f":"IFERROR(AVERAGEIFS(tabell_kursresultat[Resultat],tabell_kursresultat[Kurs],Beräkningar!$C8,tabell_kursresultat[Typ],Beräkningar!AC$5)*Inställningar!E11,\"\")","v":0.08000000000000002},{"$f":"IFERROR(AVERAGEIFS(tabell_kursresultat[Resultat],tabell_kursresultat[Kurs],Beräkningar!$C8,tabell_kursresultat[Typ],Beräkningar!AD$5)*Inställningar!F11,\"\")","v":""},{"$f":"IFERROR(AVERAGEIFS(tabell_kursresultat[Resultat],tabell_kursresultat[Kurs],Beräkningar!$C8,tabell_kursresultat[Typ],Beräkningar!AE$5)*Inställningar!G11,\"\")","v":""},{"$f":"IFERROR(AVERAGEIFS(tabell_kursresultat[Resultat],tabell_kursresultat[Kurs],Beräkningar!$C8,tabell_kursresultat[Typ],Beräkningar!AF$5)*Inställningar!H11,\"\")","v":""},{"$f":"IFERROR(AVERAGEIFS(tabell_kursresultat[Resultat],tabell_kursresultat[Kurs],Beräkningar!$C8,tabell_kursresultat[Typ],Beräkningar!AG$5)*Inställningar!I11,\"\")","v":""},{"$f":"IFERROR(AVERAGEIFS(tabell_kursresultat[Resultat],tabell_kursresultat[Kurs],Beräkningar!$C8,tabell_kursresultat[Typ],Beräkningar!AH$5)*Inställningar!J11,\"\")","v":""},{"$f":"IFERROR(AVERAGEIFS(tabell_kursresultat[Resultat],tabell_kursresultat[Kurs],Beräkningar!$C8,tabell_kursresultat[Typ],Beräkningar!AI$5)*Inställningar!K11,\"\")","v":""},0.08000000000000002,{"$f":"SUMIFS(Inställningar!E11:K11,Beräkningar!AC8:AI8,\">0\")","v":0.1},{"v":0.8000000000000002,"d":"80%"},2.67,"B-"]
[null,null,{"$f":"IF(Inställningar!C12=\"\",\"\",Inställningar!C12)","v":"Matematik 2"},{"v":0.85,"d":"85%"},{"v":0.95,"d":"95%"},"","","","","","","","","","","","","","","","","","","","","","","",{"$f":"IFERROR(AVERAGEIFS(tabell_kursresultat[Resultat],tabell_kursresultat[Kurs],Beräkningar!$C9,tabell_kursresultat[Typ],Beräkningar!AC$5)*Inställningar!E12,\"\")","v":0.1275},{"$f":"IFERROR(AVERAGEIFS(tabell_kursresultat[Resultat],tabell_kursresultat[Kurs],Beräkningar!$C9,tabell_kursresultat[Typ],Beräkningar!AD$5)*Inställningar!F12,\"\")","v":""},{"$f":"IFERROR(AVERAGEIFS(tabell_kursresultat[Resultat],tabell_kursresultat[Kurs],Beräkningar!$C9,tabell_kursresultat[Typ],Beräkningar!AE$5)*Inställningar!G12,\"\")","v":0.095},{"$f":"IFERROR(AVERAGEIFS(tabell_kursresultat[Resultat],tabell_kursresultat[Kurs],Beräkningar!$C9,tabell_kursresultat[Typ],Beräkningar!AF$5)*Inställningar!H12,\"\")","v":""},{"$f":"IFERROR(AVERAGEIFS(tabell_kursresultat[Resultat],tabell_kursresultat[Kurs],Beräkningar!$C9,tabell_kursresultat[Typ],Beräkningar!AG$5)*Inställningar!I12,\"\")","v":""},{"$f":"IFERROR(AVERAGEIFS(tabell_kursresultat[Resultat],tabell_kursresultat[Kurs],Beräkningar!$C9,tabell_kursresultat[Typ],Beräkningar!AH$5)*Inställningar!J12,\"\")","v":""},{"$f":"IFERROR(AVERAGEIFS(tabell_kursresultat[Resultat],tabell_kursresultat[Kurs],Beräkningar!$C9,tabell_kursresultat[Typ],Beräkningar!AI$5)*Inställningar!K12,\"\")","v":""},0.2225,{"$f":"SUMIFS(Inställningar!E12:K12,Beräkningar!AC9:AI9,\">0\")","v":0.25},{"v":0.89,"d":"89%"},3.33,"B+"]
[null,null,{"$f":"IF(Inställningar!C13=\"\",\"\",Inställningar!C13)","v":"Avancerad Java-programmering"},{"v":0.75,"d":"75%"},"","","","","","","","","","","","","","","","","","","","","","","","",{"$f":"IFERROR(AVERAGEIFS(tabell_kursresultat[Resultat],tabell_kursresultat[Kurs],Beräkningar!$C10,tabell_kursresultat[Typ],Beräkningar!AC$5)*Inställningar!E13,\"\")","v":""},{"$f":"IFERROR(AVERAGEIFS(tabell_kursresultat[Resultat],tabell_kursresultat[Kurs],Beräkningar!$C10,tabell_kursresultat[Typ],Beräkningar!AD$5)*Inställningar!F13,\"\")","v":""},{"$f":"IFERROR(AVERAGEIFS(tabell_kursresultat[Resultat],tabell_kursresultat[Kurs],Beräkningar!$C10,tabell_kursresultat[Typ],Beräkningar!AE$5)*Inställningar!G13,\"\")","v":""},{"$f":"IFERROR(AVERAGEIFS(tabell_kursresultat[Resultat],tabell_kursresultat[Kurs],Beräkningar!$C10,tabell_kursresultat[Typ],Beräkningar!AF$5)*Inställningar!H13,\"\")","v":""},{"$f":"IFERROR(AVERAGEIFS(tabell_kursresultat[Resultat],tabell_kursresultat[Kurs],Beräkningar!$C10,tabell_kursresultat[Typ],Beräkningar!AG$5)*Inställningar!I13,\"\")","v":0.15000000000000002},{"$f":"IFERROR(AVERAGEIFS(tabell_kursresultat[Resultat],tabell_kursresultat[Kurs],Beräkningar!$C10,tabell_kursresultat[Typ],Beräkningar!AH$5)*Inställningar!J13,\"\")","v":""},{"$f":"IFERROR(AVERAGEIFS(tabell_kursresultat[Resultat],tabell_kursresultat[Kurs],Beräkningar!$C10,tabell_kursresultat[Typ],Beräkningar!AI$5)*Inställningar!K13,\"\")","v":""},0.15000000000000002,{"$f":"SUMIFS(Inställningar!E13:K13,Beräkningar!AC10:AI10,\">0\")","v":0.2},{"v":0.7500000000000001,"d":"75%"},2,"C"]
[null,null,{"$f":"IF(Inställningar!C14=\"\",\"\",Inställningar!C14)","v":"Spanska"},{"v":0.5,"d":"50%"},"","","","","","","","","","","","","","","","","","","","","","","","",{"$f":"IFERROR(AVERAGEIFS(tabell_kursresultat[Resultat],tabell_kursresultat[Kurs],Beräkningar!$C11,tabell_kursresultat[Typ],Beräkningar!AC$5)*Inställningar!E14,\"\")","v":0.05},{"$f":"IFERROR(AVERAGEIFS(tabell_kursresultat[Resultat],tabell_kursresultat[Kurs],Beräkningar!$C11,tabell_kursresultat[Typ],Beräkningar!AD$5)*Inställningar!F14,\"\")","v":""},{"$f":"IFERROR(AVERAGEIFS(tabell_kursresultat[Resultat],tabell_kursresultat[Kurs],Beräkningar!$C11,tabell_kursresultat[Typ],Beräkningar!AE$5)*Inställningar!G14,\"\")","v":""},{"$f":"IFERROR(AVERAGEIFS(tabell_kursresultat[Resultat],tabell_kursresultat[Kurs],Beräkningar!$C11,tabell_kursresultat[Typ],Beräkningar!AF$5)*Inställningar!H14,\"\")","v":""},{"$f":"IFERROR(AVERAGEIFS(tabell_kursresultat[Resultat],tabell_kursresultat[Kurs],Beräkningar!$C11,tabell_kursresultat[Typ],Beräkningar!AG$5)*Inställningar!I14,\"\")","v":""},{"$f":"IFERROR(AVERAGEIFS(tabell_kursresultat[Resultat],tabell_kursresultat[Kurs],Beräkningar!$C11,tabell_kursresultat[Typ],Beräkningar!AH$5)*Inställningar!J14,\"\")","v":""},{"$f":"IFERROR(AVERAGEIFS(tabell_kursresultat[Resultat],tabell_kursresultat[Kurs],Beräkningar!$C11,tabell_kursresultat[Typ],Beräkningar!AI$5)*Inställningar!K14,\"\")","v":""},0.05,{"$f":"SUMIFS(Inställningar!E14:K14,Beräkningar!AC11:AI11,\">0\")","v":0.1},{"v":0.5,"d":"50%"},0,"F"]
[null,null,{"$f":"IF(Inställningar!C15=\"\",\"\",Inställningar!C15)","v":"Uppsats"},{"v":0.95,"d":"95%"},"","","","","","","","","","","","","","","","","","","","","","","","",{"$f":"IFERROR(AVERAGEIFS(tabell_kursresultat[Resultat],tabell_kursresultat[Kurs],Beräkningar!$C12,tabell_kursresultat[Typ],Beräkningar!AC$5)*Inställningar!E15,\"\")","v":""},{"$f":"IFERROR(AVERAGEIFS(tabell_kursresultat[Resultat],tabell_kursresultat[Kurs],Beräkningar!$C12,tabell_kursresultat[Typ],Beräkningar!AD$5)*Inställningar!F15,\"\")","v":0.1425},{"$f":"IFERROR(AVERAGEIFS(tabell_kursresultat[Resultat],tabell_kursresultat[Kurs],Beräkningar!$C12,tabell_kursresultat[Typ],Beräkningar!AE$5)*Inställningar!G15,\"\")","v":""},{"$f":"IFERROR(AVERAGEIFS(tabell_kursresultat[Resultat],tabell_kursresultat[Kurs],Beräkningar!$C12,tabell_kursresultat[Typ],Beräkningar!AF$5)*Inställningar!H15,\"\")","v":""},{"$f":"IFERROR(AVERAGEIFS(tabell_kursresultat[Resultat],tabell_kursresultat[Kurs],Beräkningar!$C12,tabell_kursresultat[Typ],Beräkningar!AG$5)*Inställningar!I15,\"\")","v":""},{"$f":"IFERROR(AVERAGEIFS(tabell_kursresultat[Resultat],tabell_kursresultat[Kurs],Beräkningar!$C12,tabell_kursresultat[Typ],Beräkningar!AH$5)*Inställningar!J15,\"\")","v":""},{"$f":"IFERROR(AVERAGEIFS(tabell_kursresultat[Resultat],tabell_kursresultat[Kurs],Beräkningar!$C12,tabell_kursresultat[Typ],Beräkningar!AI$5)*Inställningar!K15,\"\")","v":""},0.1425,{"$f":"SUMIFS(Inställningar!E15:K15,Beräkningar!AC12:AI12,\">0\")","v":0.15},{"v":0.95,"d":"95%"},4,"A"]
[null,null,{"$f":"IF(Inställningar!C16=\"\",\"\",Inställningar!C16)","v":""},"","","","","","","","","","","","","","","","","","","","","","","","","",{"$f":"IFERROR(AVERAGEIFS(tabell_kursresultat[Resultat],tabell_kursresultat[Kurs],Beräkningar!$C13,tabell_kursresultat[Typ],Beräkningar!AC$5)*Inställningar!E16,\"\")","v":""},{"$f":"IFERROR(AVERAGEIFS(tabell_kursresultat[Resultat],tabell_kursresultat[Kurs],Beräkningar!$C13,tabell_kursresultat[Typ],Beräkningar!AD$5)*Inställningar!F16,\"\")","v":""},{"$f":"IFERROR(AVERAGEIFS(tabell_kursresultat[Resultat],tabell_kursresultat[Kurs],Beräkningar!$C13,tabell_kursresultat[Typ],Beräkningar!AE$5)*Inställningar!G16,\"\")","v":""},{"$f":"IFERROR(AVERAGEIFS(tabell_kursresultat[Resultat],tabell_kursresultat[Kurs],Beräkningar!$C13,tabell_kursresultat[Typ],Beräkningar!AF$5)*Inställningar!H16,\"\")","v":""},{"$f":"IFERROR(AVERAGEIFS(tabell_kursresultat[Resultat],tabell_kursresultat[Kurs],Beräkningar!$C13,tabell_kursresultat[Typ],Beräkningar!AG$5)*Inställningar!I16,\"\")","v":""},{"$f":"IFERROR(AVERAGEIFS(tabell_kursresultat[Resultat],tabell_kursresultat[Kurs],Beräkningar!$C13,tabell_kursresultat[Typ],Beräkningar!AH$5)*Inställningar!J16,\"\")","v":""},{"$f":"IFERROR(AVERAGEIFS(tabell_kursresultat[Resultat],tabell_kursresultat[Kurs],Beräkningar!$C13,tabell_kursresultat[Typ],Beräkningar!AI$5)*Inställningar!K16,\"\")","v":""},0,{"$f":"SUMIFS(Inställningar!E16:K16,Beräkningar!AC13:AI13,\">0\")","v":0},"","",""]
[null,null,{"$f":"IF(Inställningar!C17=\"\",\"\",Inställningar!C17)","v":""},"","","","","","","","","","","","","","","","","","","","","","","","","",{"$f":"IFERROR(AVERAGEIFS(tabell_kursresultat[Resultat],tabell_kursresultat[Kurs],Beräkningar!$C14,tabell_kursresultat[Typ],Beräkningar!AC$5)*Inställningar!E17,\"\")","v":""},{"$f":"IFERROR(AVERAGEIFS(tabell_kursresultat[Resultat],tabell_kursresultat[Kurs],Beräkningar!$C14,tabell_kursresultat[Typ],Beräkningar!AD$5)*Inställningar!F17,\"\")","v":""},{"$f":"IFERROR(AVERAGEIFS(tabell_kursresultat[Resultat],tabell_kursresultat[Kurs],Beräkningar!$C14,tabell_kursresultat[Typ],Beräkningar!AE$5)*Inställningar!G17,\"\")","v":""},{"$f":"IFERROR(AVERAGEIFS(tabell_kursresultat[Resultat],tabell_kursresultat[Kurs],Beräkningar!$C14,tabell_kursresultat[Typ],Beräkningar!AF$5)*Inställningar!H17,\"\")","v":""},{"$f":"IFERROR(AVERAGEIFS(tabell_kursresultat[Resultat],tabell_kursresultat[Kurs],Beräkningar!$C14,tabell_kursresultat[Typ],Beräkningar!AG$5)*Inställningar!I17,\"\")","v":""},{"$f":"IFERROR(AVERAGEIFS(tabell_kursresultat[Resultat],tabell_kursresultat[Kurs],Beräkningar!$C14,tabell_kursresultat[Typ],Beräkningar!AH$5)*Inställningar!J17,\"\")","v":""},{"$f":"IFERROR(AVERAGEIFS(tabell_kursresultat[Resultat],tabell_kursresultat[Kurs],Beräkningar!$C14,tabell_kursresultat[Typ],Beräkningar!AI$5)*Inställningar!K17,\"\")","v":""},0,{"$f":"SUMIFS(Inställningar!E17:K17,Beräkningar!AC14:AI14,\">0\")","v":0},"","",""]
[null,null,{"$f":"IF(Inställningar!C18=\"\",\"\",Inställningar!C18)","v":""},"","","","","","","","","","","","","","","","","","","","","","","","","",{"$f":"IFERROR(AVERAGEIFS(tabell_kursresultat[Resultat],tabell_kursresultat[Kurs],Beräkningar!$C15,tabell_kursresultat[Typ],Beräkningar!AC$5)*Inställningar!E18,\"\")","v":""},{"$f":"IFERROR(AVERAGEIFS(tabell_kursresultat[Resultat],tabell_kursresultat[Kurs],Beräkningar!$C15,tabell_kursresultat[Typ],Beräkningar!AD$5)*Inställningar!F18,\"\")","v":""},{"$f":"IFERROR(AVERAGEIFS(tabell_kursresultat[Resultat],tabell_kursresultat[Kurs],Beräkningar!$C15,tabell_kursresultat[Typ],Beräkningar!AE$5)*Inställningar!G18,\"\")","v":""},{"$f":"IFERROR(AVERAGEIFS(tabell_kursresultat[Resultat],tabell_kursresultat[Kurs],Beräkningar!$C15,tabell_kursresultat[Typ],Beräkningar!AF$5)*Inställningar!H18,\"\")","v":""},{"$f":"IFERROR(AVERAGEIFS(tabell_kursresultat[Resultat],tabell_kursresultat[Kurs],Beräkningar!$C15,tabell_kursresultat[Typ],Beräkningar!AG$5)*Inställningar!I18,\"\")","v":""},{"$f":"IFERROR(AVERAGEIFS(tabell_kursresultat[Resultat],tabell_kursresultat[Kurs],Beräkningar!$C15,tabell_kursresultat[Typ],Beräkningar!AH$5)*Inställningar!J18,\"\")","v":""},{"$f":"IFERROR(AVERAGEIFS(tabell_kursresultat[Resultat],tabell_kursresultat[Kurs],Beräkningar!$C15,tabell_kursresultat[Typ],Beräkningar!AI$5)*Inställningar!K18,\"\")","v":""},0,{"$f":"SUMIFS(Inställningar!E18:K18,Beräkningar!AC15:AI15,\">0\")","v":0},"","",""]
[null,null,{"$f":"IF(Inställningar!C19=\"\",\"\",Inställningar!C19)","v":""},"","","","","","","","","","","","","","","","","","","","","","","","","",{"$f":"IFERROR(AVERAGEIFS(tabell_kursresultat[Resultat],tabell_kursresultat[Kurs],Beräkningar!$C16,tabell_kursresultat[Typ],Beräkningar!AC$5)*Inställningar!E19,\"\")","v":""},{"$f":"IFERROR(AVERAGEIFS(tabell_kursresultat[Resultat],tabell_kursresultat[Kurs],Beräkningar!$C16,tabell_kursresultat[Typ],Beräkningar!AD$5)*Inställningar!F19,\"\")","v":""},{"$f":"IFERROR(AVERAGEIFS(tabell_kursresultat[Resultat],tabell_kursresultat[Kurs],Beräkningar!$C16,tabell_kursresultat[Typ],Beräkningar!AE$5)*Inställningar!G19,\"\")","v":""},{"$f":"IFERROR(AVERAGEIFS(tabell_kursresultat[Resultat],tabell_kursresultat[Kurs],Beräkningar!$C16,tabell_kursresultat[Typ],Beräkningar!AF$5)*Inställningar!H19,\"\")","v":""},{"$f":"IFERROR(AVERAGEIFS(tabell_kursresultat[Resultat],tabell_kursresultat[Kurs],Beräkningar!$C16,tabell_kursresultat[Typ],Beräkningar!AG$5)*Inställningar!I19,\"\")","v":""},{"$f":"IFERROR(AVERAGEIFS(tabell_kursresultat[Resultat],tabell_kursresultat[Kurs],Beräkningar!$C16,tabell_kursresultat[Typ],Beräkningar!AH$5)*Inställningar!J19,\"\")","v":""},{"$f":"IFERROR(AVERAGEIFS(tabell_kursresultat[Resultat],tabell_kursresultat[Kurs],Beräkningar!$C16,tabell_kursresultat[Typ],Beräkningar!AI$5)*Inställningar!K19,\"\")","v":""},0,{"$f":"SUMIFS(Inställningar!E19:K19,Beräkningar!AC16:AI16,\">0\")","v":0},"","",""]
[null,null,{"$f":"IF(Inställningar!C20=\"\",\"\",Inställningar!C20)","v":""},"","","","","","","","","","","","","","","","","","","","","","","","","",{"$f":"IFERROR(AVERAGEIFS(tabell_kursresultat[Resultat],tabell_kursresultat[Kurs],Beräkningar!$C17,tabell_kursresultat[Typ],Beräkningar!AC$5)*Inställningar!E20,\"\")","v":""},{"$f":"IFERROR(AVERAGEIFS(tabell_kursresultat[Resultat],tabell_kursresultat[Kurs],Beräkningar!$C17,tabell_kursresultat[Typ],Beräkningar!AD$5)*Inställningar!F20,\"\")","v":""},{"$f":"IFERROR(AVERAGEIFS(tabell_kursresultat[Resultat],tabell_kursresultat[Kurs],Beräkningar!$C17,tabell_kursresultat[Typ],Beräkningar!AE$5)*Inställningar!G20,\"\")","v":""},{"$f":"IFERROR(AVERAGEIFS(tabell_kursresultat[Resultat],tabell_kursresultat[Kurs],Beräkningar!$C17,tabell_kursresultat[Typ],Beräkningar!AF$5)*Inställningar!H20,\"\")","v":""},{"$f":"IFERROR(AVERAGEIFS(tabell_kursresultat[Resultat],tabell_kursresultat[Kurs],Beräkningar!$C17,tabell_kursresultat[Typ],Beräkningar!AG$5)*Inställningar!I20,\"\")","v":""},{"$f":"IFERROR(AVERAGEIFS(tabell_kursresultat[Resultat],tabell_kursresultat[Kurs],Beräkningar!$C17,tabell_kursresultat[Typ],Beräkningar!AH$5)*Inställningar!J20,\"\")","v":""},{"$f":"IFERROR(AVERAGEIFS(tabell_kursresultat[Resultat],tabell_kursresultat[Kurs],Beräkningar!$C17,tabell_kursresultat[Typ],Beräkningar!AI$5)*Inställningar!K20,\"\")","v":""},0,{"$f":"SUMIFS(Inställningar!E20:K20,Beräkningar!AC17:AI17,\">0\")","v":0},"","",""]
[null,null,{"$f":"IF(Inställningar!C21=\"\",\"\",Inställningar!C21)","v":""},"","","","","","","","","","","","","","","","","","","","","","","","","",{"$f":"IFERROR(AVERAGEIFS(tabell_kursresultat[Resultat],tabell_kursresultat[Kurs],Beräkningar!$C18,tabell_kursresultat[Typ],Beräkningar!AC$5)*Inställningar!E21,\"\")","v":""},{"$f":"IFERROR(AVERAGEIFS(tabell_kursresultat[Resultat],tabell_kursresultat[Kurs],Beräkningar!$C18,tabell_kursresultat[Typ],Beräkningar!AD$5)*Inställningar!F21,\"\")","v":""},{"$f":"IFERROR(AVERAGEIFS(tabell_kursresultat[Resultat],tabell_kursresultat[Kurs],Beräkningar!$C18,tabell_kursresultat[Typ],Beräkningar!AE$5)*Inställningar!G21,\"\")","v":""},{"$f":"IFERROR(AVERAGEIFS(tabell_kursresultat[Resultat],tabell_kursresultat[Kurs],Beräkningar!$C18,tabell_kursresultat[Typ],Beräkningar!AF$5)*Inställningar!H21,\"\")","v":""},{"$f":"IFERROR(AVERAGEIFS(tabell_kursresultat[Resultat],tabell_kursresultat[Kurs],Beräkningar!$C18,tabell_kursresultat[Typ],Beräkningar!AG$5)*Inställningar!I21,\"\")","v":""},{"$f":"IFERROR(AVERAGEIFS(tabell_kursresultat[Resultat],tabell_kursresultat[Kurs],Beräkningar!$C18,tabell_kursresultat[Typ],Beräkningar!AH$5)*Inställningar!J21,\"\")","v":""},{"$f":"IFERROR(AVERAGEIFS(tabell_kursresultat[Resultat],tabell_kursresultat[Kurs],Beräkningar!$C18,tabell_kursresultat[Typ],Beräkningar!AI$5)*Inställningar!K21,\"\")","v":""},0,{"$f":"SUMIFS(Inställningar!E21:K21,Beräkningar!AC18:AI18,\">0\")","v":0},"","",""]
[null,null,{"$f":"IF(Inställningar!C22=\"\",\"\",Inställningar!C22)","v":""},"","","","","","","","","","","","","","","","","","","","","","","","","",{"$f":"IFERROR(AVERAGEIFS(tabell_kursresultat[Resultat],tabell_kursresultat[Kurs],Beräkningar!$C19,tabell_kursresultat[Typ],Beräkningar!AC$5)*Inställningar!E22,\"\")","v":""},{"$f":"IFERROR(AVERAGEIFS(tabell_kursresultat[Resultat],tabell_kursresultat[Kurs],Beräkningar!$C19,tabell_kursresultat[Typ],Beräkningar!AD$5)*Inställningar!F22,\"\")","v":""},{"$f":"IFERROR(AVERAGEIFS(tabell_kursresultat[Resultat],tabell_kursresultat[Kurs],Beräkningar!$C19,tabell_kursresultat[Typ],Beräkningar!AE$5)*Inställningar!G22,\"\")","v":""},{"$f":"IFERROR(AVERAGEIFS(tabell_kursresultat[Resultat],tabell_kursresultat[Kurs],Beräkningar!$C19,tabell_kursresultat[Typ],Beräkningar!AF$5)*Inställningar!H22,\"\")","v":""},{"$f":"IFERROR(AVERAGEIFS(tabell_kursresultat[Resultat],tabell_kursresultat[Kurs],Beräkningar!$C19,tabell_kursresultat[Typ],Beräkningar!AG$5)*Inställningar!I22,\"\")","v":""},{"$f":"IFERROR(AVERAGEIFS(tabell_kursresultat[Resultat],tabell_kursresultat[Kurs],Beräkningar!$C19,tabell_kursresultat[Typ],Beräkningar!AH$5)*Inställningar!J22,\"\")","v":""},{"$f":"IFERROR(AVERAGEIFS(tabell_kursresultat[Resultat],tabell_kursresultat[Kurs],Beräkningar!$C19,tabell_kursresultat[Typ],Beräkningar!AI$5)*Inställningar!K22,\"\")","v":""},0,{"$f":"SUMIFS(Inställningar!E17:K17,Beräkningar!AC19:AI19,\">0\")","v":0},"","",""]
[null,null,{"$f":"IF(Inställningar!C23=\"\",\"\",Inställningar!C23)","v":""},"","","","","","","","","","","","","","","","","","","","","","","","","",{"$f":"IFERROR(AVERAGEIFS(tabell_kursresultat[Resultat],tabell_kursresultat[Kurs],Beräkningar!$C20,tabell_kursresultat[Typ],Beräkningar!AC$5)*Inställningar!E23,\"\")","v":""},{"$f":"IFERROR(AVERAGEIFS(tabell_kursresultat[Resultat],tabell_kursresultat[Kurs],Beräkningar!$C20,tabell_kursresultat[Typ],Beräkningar!AD$5)*Inställningar!F23,\"\")","v":""},{"$f":"IFERROR(AVERAGEIFS(tabell_kursresultat[Resultat],tabell_kursresultat[Kurs],Beräkningar!$C20,tabell_kursresultat[Typ],Beräkningar!AE$5)*Inställningar!G23,\"\")","v":""},{"$f":"IFERROR(AVERAGEIFS(tabell_kursresultat[Resultat],tabell_kursresultat[Kurs],Beräkningar!$C20,tabell_kursresultat[Typ],Beräkningar!AF$5)*Inställningar!H23,\"\")","v":""},{"$f":"IFERROR(AVERAGEIFS(tabell_kursresultat[Resultat],tabell_kursresultat[Kurs],Beräkningar!$C20,tabell_kursresultat[Typ],Beräkningar!AG$5)*Inställningar!I23,\"\")","v":""},{"$f":"IFERROR(AVERAGEIFS(tabell_kursresultat[Resultat],tabell_kursresultat[Kurs],Beräkningar!$C20,tabell_kursresultat[Typ],Beräkningar!AH$5)*Inställningar!J23,\"\")","v":""},{"$f":"IFERROR(AVERAGEIFS(tabell_kursresultat[Resultat],tabell_kursresultat[Kurs],Beräkningar!$C20,tabell_kursresultat[Typ],Beräkningar!AI$5)*Inställningar!K23,\"\")","v":""},0,{"$f":"SUMIFS(Inställningar!E18:K18,Beräkningar!AC20:AI20,\">0\")","v":0},"","",""]
[null,null,{"$f":"IF(Inställningar!C24=\"\",\"\",Inställningar!C24)","v":""},"","","","","","","","","","","","","","","","","","","","","","","","","",{"$f":"IFERROR(AVERAGEIFS(tabell_kursresultat[Resultat],tabell_kursresultat[Kurs],Beräkningar!$C21,tabell_kursresultat[Typ],Beräkningar!AC$5)*Inställningar!E24,\"\")","v":""},{"$f":"IFERROR(AVERAGEIFS(tabell_kursresultat[Resultat],tabell_kursresultat[Kurs],Beräkningar!$C21,tabell_kursresultat[Typ],Beräkningar!AD$5)*Inställningar!F24,\"\")","v":""},{"$f":"IFERROR(AVERAGEIFS(tabell_kursresultat[Resultat],tabell_kursresultat[Kurs],Beräkningar!$C21,tabell_kursresultat[Typ],Beräkningar!AE$5)*Inställningar!G24,\"\")","v":""},{"$f":"IFERROR(AVERAGEIFS(tabell_kursresultat[Resultat],tabell_kursresultat[Kurs],Beräkningar!$C21,tabell_kursresultat[Typ],Beräkningar!AF$5)*Inställningar!H24,\"\")","v":""},{"$f":"IFERROR(AVERAGEIFS(tabell_kursresultat[Resultat],tabell_kursresultat[Kurs],Beräkningar!$C21,tabell_kursresultat[Typ],Beräkningar!AG$5)*Inställningar!I24,\"\")","v":""},{"$f":"IFERROR(AVERAGEIFS(tabell_kursresultat[Resultat],tabell_kursresultat[Kurs],Beräkningar!$C21,tabell_kursresultat[Typ],Beräkningar!AH$5)*Inställningar!J24,\"\")","v":""},{"$f":"IFERROR(AVERAGEIFS(tabell_kursresultat[Resultat],tabell_kursresultat[Kurs],Beräkningar!$C21,tabell_kursresultat[Typ],Beräkningar!AI$5)*Inställningar!K24,\"\")","v":""},0,{"$f":"SUMIFS(Inställningar!E19:K19,Beräkningar!AC21:AI21,\">0\")","v":0},"","",""]
[null,null,{"$f":"IF(Inställningar!C25=\"\",\"\",Inställningar!C25)","v":""},"","","","","","","","","","","","","","","","","","","","","","","","","",{"$f":"IFERROR(AVERAGEIFS(tabell_kursresultat[Resultat],tabell_kursresultat[Kurs],Beräkningar!$C22,tabell_kursresultat[Typ],Beräkningar!AC$5)*Inställningar!E25,\"\")","v":""},{"$f":"IFERROR(AVERAGEIFS(tabell_kursresultat[Resultat],tabell_kursresultat[Kurs],Beräkningar!$C22,tabell_kursresultat[Typ],Beräkningar!AD$5)*Inställningar!F25,\"\")","v":""},{"$f":"IFERROR(AVERAGEIFS(tabell_kursresultat[Resultat],tabell_kursresultat[Kurs],Beräkningar!$C22,tabell_kursresultat[Typ],Beräkningar!AE$5)*Inställningar!G25,\"\")","v":""},{"$f":"IFERROR(AVERAGEIFS(tabell_kursresultat[Resultat],tabell_kursresultat[Kurs],Beräkningar!$C22,tabell_kursresultat[Typ],Beräkningar!AF$5)*Inställningar!H25,\"\")","v":""},{"$f":"IFERROR(AVERAGEIFS(tabell_kursresultat[Resultat],tabell_kursresultat[Kurs],Beräkningar!$C22,tabell_kursresultat[Typ],Beräkningar!AG$5)*Inställningar!I25,\"\")","v":""},{"$f":"IFERROR(AVERAGEIFS(tabell_kursresultat[Resultat],tabell_kursresultat[Kurs],Beräkningar!$C22,tabell_kursresultat[Typ],Beräkningar!AH$5)*Inställningar!J25,\"\")","v":""},{"$f":"IFERROR(AVERAGEIFS(tabell_kursresultat[Resultat],tabell_kursresultat[Kurs],Beräkningar!$C22,tabell_kursresultat[Typ],Beräkningar!AI$5)*Inställningar!K25,\"\")","v":""},0,{"$f":"SUMIFS(Inställningar!E20:K20,Beräkningar!AC22:AI22,\">0\")","v":0},"","",""]
[null,null,{"$f":"IF(Inställningar!C26=\"\",\"\",Inställningar!C26)","v":""},"","","","","","","","","","","","","","","","","","","","","","","","","",{"$f":"IFERROR(AVERAGEIFS(tabell_kursresultat[Resultat],tabell_kursresultat[Kurs],Beräkningar!$C23,tabell_kursresultat[Typ],Beräkningar!AC$5)*Inställningar!E26,\"\")","v":""},{"$f":"IFERROR(AVERAGEIFS(tabell_kursresultat[Resultat],tabell_kursresultat[Kurs],Beräkningar!$C23,tabell_kursresultat[Typ],Beräkningar!AD$5)*Inställningar!F26,\"\")","v":""},{"$f":"IFERROR(AVERAGEIFS(tabell_kursresultat[Resultat],tabell_kursresultat[Kurs],Beräkningar!$C23,tabell_kursresultat[Typ],Beräkningar!AE$5)*Inställningar!G26,\"\")","v":""},{"$f":"IFERROR(AVERAGEIFS(tabell_kursresultat[Resultat],tabell_kursresultat[Kurs],Beräkningar!$C23,tabell_kursresultat[Typ],Beräkningar!AF$5)*Inställningar!H26,\"\")","v":""},{"$f":"IFERROR(AVERAGEIFS(tabell_kursresultat[Resultat],tabell_kursresultat[Kurs],Beräkningar!$C23,tabell_kursresultat[Typ],Beräkningar!AG$5)*Inställningar!I26,\"\")","v":""},{"$f":"IFERROR(AVERAGEIFS(tabell_kursresultat[Resultat],tabell_kursresultat[Kurs],Beräkningar!$C23,tabell_kursresultat[Typ],Beräkningar!AH$5)*Inställningar!J26,\"\")","v":""},{"$f":"IFERROR(AVERAGEIFS(tabell_kursresultat[Resultat],tabell_kursresultat[Kurs],Beräkningar!$C23,tabell_kursresultat[Typ],Beräkningar!AI$5)*Inställningar!K26,\"\")","v":""},0,{"$f":"SUMIFS(Inställningar!E21:K21,Beräkningar!AC23:AI23,\">0\")","v":0},"","",""]
[null,null,{"$f":"IF(Inställningar!C27=\"\",\"\",Inställningar!C27)","v":""},"","","","","","","","","","","","","","","","","","","","","","","","","",{"$f":"IFERROR(AVERAGEIFS(tabell_kursresultat[Resultat],tabell_kursresultat[Kurs],Beräkningar!$C24,tabell_kursresultat[Typ],Beräkningar!AC$5)*Inställningar!E27,\"\")","v":""},{"$f":"IFERROR(AVERAGEIFS(tabell_kursresultat[Resultat],tabell_kursresultat[Kurs],Beräkningar!$C24,tabell_kursresultat[Typ],Beräkningar!AD$5)*Inställningar!F27,\"\")","v":""},{"$f":"IFERROR(AVERAGEIFS(tabell_kursresultat[Resultat],tabell_kursresultat[Kurs],Beräkningar!$C24,tabell_kursresultat[Typ],Beräkningar!AE$5)*Inställningar!G27,\"\")","v":""},{"$f":"IFERROR(AVERAGEIFS(tabell_kursresultat[Resultat],tabell_kursresultat[Kurs],Beräkningar!$C24,tabell_kursresultat[Typ],Beräkningar!AF$5)*Inställningar!H27,\"\")","v":""},{"$f":"IFERROR(AVERAGEIFS(tabell_kursresultat[Resultat],tabell_kursresultat[Kurs],Beräkningar!$C24,tabell_kursresultat[Typ],Beräkningar!AG$5)*Inställningar!I27,\"\")","v":""},{"$f":"IFERROR(AVERAGEIFS(tabell_kursresultat[Resultat],tabell_kursresultat[Kurs],Beräkningar!$C24,tabell_kursresultat[Typ],Beräkningar!AH$5)*Inställningar!J27,\"\")","v":""},{"$f":"IFERROR(AVERAGEIFS(tabell_kursresultat[Resultat],tabell_kursresultat[Kurs],Beräkningar!$C24,tabell_kursresultat[Typ],Beräkningar!AI$5)*Inställningar!K27,\"\")","v":""},0,{"$f":"SUMIFS(Inställningar!E22:K22,Beräkningar!AC24:AI24,\">0\")","v":0},"","",""]
[null,null,{"$f":"IF(Inställningar!C28=\"\",\"\",Inställningar!C28)","v":""},"","","","","","","","","","","","","","","","","","","","","","","","","",{"$f":"IFERROR(AVERAGEIFS(tabell_kursresultat[Resultat],tabell_kursresultat[Kurs],Beräkningar!$C25,tabell_kursresultat[Typ],Beräkningar!AC$5)*Inställningar!E28,\"\")","v":""},{"$f":"IFERROR(AVERAGEIFS(tabell_kursresultat[Resultat],tabell_kursresultat[Kurs],Beräkningar!$C25,tabell_kursresultat[Typ],Beräkningar!AD$5)*Inställningar!F28,\"\")","v":""},{"$f":"IFERROR(AVERAGEIFS(tabell_kursresultat[Resultat],tabell_kursresultat[Kurs],Beräkningar!$C25,tabell_kursresultat[Typ],Beräkningar!AE$5)*Inställningar!G28,\"\")","v":""},{"$f":"IFERROR(AVERAGEIFS(tabell_kursresultat[Resultat],tabell_kursresultat[Kurs],Beräkningar!$C25,tabell_kursresultat[Typ],Beräkningar!AF$5)*Inställningar!H28,\"\")","v":""},{"$f":"IFERROR(AVERAGEIFS(tabell_kursresultat[Resultat],tabell_kursresultat[Kurs],Beräkningar!$C25,tabell_kursresultat[Typ],Beräkningar!AG$5)*Inställningar!I28,\"\")","v":""},{"$f":"IFERROR(AVERAGEIFS(tabell_kursresultat[Resultat],tabell_kursresultat[Kurs],Beräkningar!$C25,tabell_kursresultat[Typ],Beräkningar!AH$5)*Inställningar!J28,\"\")","v":""},{"$f":"IFERROR(AVERAGEIFS(tabell_kursresultat[Resultat],tabell_kursresultat[Kurs],Beräkningar!$C25,tabell_kursresultat[Typ],Beräkningar!AI$5)*Inställningar!K28,\"\")","v":""},0,{"$f":"SUMIFS(Inställningar!E23:K23,Beräkningar!AC25:AI25,\">0\")","v":0},"","",""]
[null,null,{"$f":"IF(Inställningar!C29=\"\",\"\",Inställningar!C29)","v":""},"","","","","","","","","","","","","","","","","","","","","","","","","",{"$f":"IFERROR(AVERAGEIFS(tabell_kursresultat[Resultat],tabell_kursresultat[Kurs],Beräkningar!$C26,tabell_kursresultat[Typ],Beräkningar!AC$5)*Inställningar!E29,\"\")","v":""},{"$f":"IFERROR(AVERAGEIFS(tabell_kursresultat[Resultat],tabell_kursresultat[Kurs],Beräkningar!$C26,tabell_kursresultat[Typ],Beräkningar!AD$5)*Inställningar!F29,\"\")","v":""},{"$f":"IFERROR(AVERAGEIFS(tabell_kursresultat[Resultat],tabell_kursresultat[Kurs],Beräkningar!$C26,tabell_kursresultat[Typ],Beräkningar!AE$5)*Inställningar!G29,\"\")","v":""},{"$f":"IFERROR(AVERAGEIFS(tabell_kursresultat[Resultat],tabell_kursresultat[Kurs],Beräkningar!$C26,tabell_kursresultat[Typ],Beräkningar!AF$5)*Inställningar!H29,\"\")","v":""},{"$f":"IFERROR(AVERAGEIFS(tabell_kursresultat[Resultat],tabell_kursresultat[Kurs],Beräkningar!$C26,tabell_kursresultat[Typ],Beräkningar!AG$5)*Inställningar!I29,\"\")","v":""},{"$f":"IFERROR(AVERAGEIFS(tabell_kursresultat[Resultat],tabell_kursresultat[Kurs],Beräkningar!$C26,tabell_kursresultat[Typ],Beräkningar!AH$5)*Inställningar!J29,\"\")","v":""},{"$f":"IFERROR(AVERAGEIFS(tabell_kursresultat[Resultat],tabell_kursresultat[Kurs],Beräkningar!$C26,tabell_kursresultat[Typ],Beräkningar!AI$5)*Inställningar!K29,\"\")","v":""},0,{"$f":"SUMIFS(Inställningar!E24:K24,Beräkningar!AC26:AI26,\">0\")","v":0},"","",""]
[null,null,{"$f":"IF(Inställningar!C30=\"\",\"\",Inställningar!C30)","v":""},"","","","","","","","","","","","","","","","","","","","","","","","","",{"$f":"IFERROR(AVERAGEIFS(tabell_kursresultat[Resultat],tabell_kursresultat[Kurs],Beräkningar!$C27,tabell_kursresultat[Typ],Beräkningar!AC$5)*Inställningar!E30,\"\")","v":""},{"$f":"IFERROR(AVERAGEIFS(tabell_kursresultat[Resultat],tabell_kursresultat[Kurs],Beräkningar!$C27,tabell_kursresultat[Typ],Beräkningar!AD$5)*Inställningar!F30,\"\")","v":""},{"$f":"IFERROR(AVERAGEIFS(tabell_kursresultat[Resultat],tabell_kursresultat[Kurs],Beräkningar!$C27,tabell_kursresultat[Typ],Beräkningar!AE$5)*Inställningar!G30,\"\")","v":""},{"$f":"IFERROR(AVERAGEIFS(tabell_kursresultat[Resultat],tabell_kursresultat[Kurs],Beräkningar!$C27,tabell_kursresultat[Typ],Beräkningar!AF$5)*Inställningar!H30,\"\")","v":""},{"$f":"IFERROR(AVERAGEIFS(tabell_kursresultat[Resultat],tabell_kursresultat[Kurs],Beräkningar!$C27,tabell_kursresultat[Typ],Beräkningar!AG$5)*Inställningar!I30,\"\")","v":""},{"$f":"IFERROR(AVERAGEIFS(tabell_kursresultat[Resultat],tabell_kursresultat[Kurs],Beräkningar!$C27,tabell_kursresultat[Typ],Beräkningar!AH$5)*Inställningar!J30,\"\")","v":""},{"$f":"IFERROR(AVERAGEIFS(tabell_kursresultat[Resultat],tabell_kursresultat[Kurs],Beräkningar!$C27,tabell_kursresultat[Typ],Beräkningar!AI$5)*Inställningar!K30,\"\")","v":""},0,{"$f":"SUMIFS(Inställningar!E25:K25,Beräkningar!AC27:AI27,\">0\")","v":0},"","",""]
[null,null,{"$f":"IF(Inställningar!C31=\"\",\"\",Inställningar!C31)","v":""},"","","","","","","","","","","","","","","","","","","","","","","","","",{"$f":"IFERROR(AVERAGEIFS(tabell_kursresultat[Resultat],tabell_kursresultat[Kurs],Beräkningar!$C28,tabell_kursresultat[Typ],Beräkningar!AC$5)*Inställningar!E31,\"\")","v":""},{"$f":"IFERROR(AVERAGEIFS(tabell_kursresultat[Resultat],tabell_kursresultat[Kurs],Beräkningar!$C28,tabell_kursresultat[Typ],Beräkningar!AD$5)*Inställningar!F31,\"\")","v":""},{"$f":"IFERROR(AVERAGEIFS(tabell_kursresultat[Resultat],tabell_kursresultat[Kurs],Beräkningar!$C28,tabell_kursresultat[Typ],Beräkningar!AE$5)*Inställningar!G31,\"\")","v":""},{"$f":"IFERROR(AVERAGEIFS(tabell_kursresultat[Resultat],tabell_kursresultat[Kurs],Beräkningar!$C28,tabell_kursresultat[Typ],Beräkningar!AF$5)*Inställningar!H31,\"\")","v":""},{"$f":"IFERROR(AVERAGEIFS(tabell_kursresultat[Resultat],tabell_kursresultat[Kurs],Beräkningar!$C28,tabell_kursresultat[Typ],Beräkningar!AG$5)*Inställningar!I31,\"\")","v":""},{"$f":"IFERROR(AVERAGEIFS(tabell_kursresultat[Resultat],tabell_kursresultat[Kurs],Beräkningar!$C28,tabell_kursresultat[Typ],Beräkningar!AH$5)*Inställningar!J31,\"\")","v":""},{"$f":"IFERROR(AVERAGEIFS(tabell_kursresultat[Resultat],tabell_kursresultat[Kurs],Beräkningar!$C28,tabell_kursresultat[Typ],Beräkningar!AI$5)*Inställningar!K31,\"\")","v":""},0,{"$f":"SUMIFS(Inställningar!E26:K26,Beräkningar!AC28:AI28,\">0\")","v":0},"","",""]
[null,null,{"$f":"IF(Inställningar!C32=\"\",\"\",Inställningar!C32)","v":""},"","","","","","","","","","","","","","","","","","","","","","","","","",{"$f":"IFERROR(AVERAGEIFS(tabell_kursresultat[Resultat],tabell_kursresultat[Kurs],Beräkningar!$C29,tabell_kursresultat[Typ],Beräkningar!AC$5)*Inställningar!E32,\"\")","v":""},{"$f":"IFERROR(AVERAGEIFS(tabell_kursresultat[Resultat],tabell_kursresultat[Kurs],Beräkningar!$C29,tabell_kursresultat[Typ],Beräkningar!AD$5)*Inställningar!F32,\"\")","v":""},{"$f":"IFERROR(AVERAGEIFS(tabell_kursresultat[Resultat],tabell_kursresultat[Kurs],Beräkningar!$C29,tabell_kursresultat[Typ],Beräkningar!AE$5)*Inställningar!G32,\"\")","v":""},{"$f":"IFERROR(AVERAGEIFS(tabell_kursresultat[Resultat],tabell_kursresultat[Kurs],Beräkningar!$C29,tabell_kursresultat[Typ],Beräkningar!AF$5)*Inställningar!H32,\"\")","v":""},{"$f":"IFERROR(AVERAGEIFS(tabell_kursresultat[Resultat],tabell_kursresultat[Kurs],Beräkningar!$C29,tabell_kursresultat[Typ],Beräkningar!AG$5)*Inställningar!I32,\"\")","v":""},{"$f":"IFERROR(AVERAGEIFS(tabell_kursresultat[Resultat],tabell_kursresultat[Kurs],Beräkningar!$C29,tabell_kursresultat[Typ],Beräkningar!AH$5)*Inställningar!J32,\"\")","v":""},{"$f":"IFERROR(AVERAGEIFS(tabell_kursresultat[Resultat],tabell_kursresultat[Kurs],Beräkningar!$C29,tabell_kursresultat[Typ],Beräkningar!AI$5)*Inställningar!K32,\"\")","v":""},0,{"$f":"SUMIFS(Inställningar!E27:K27,Beräkningar!AC29:AI29,\">0\")","v":0},"","",""]
[null,null,{"$f":"IF(Inställningar!C33=\"\",\"\",Inställningar!C33)","v":""},"","","","","","","","","","","","","","","","","","","","","","","","","",{"$f":"IFERROR(AVERAGEIFS(tabell_kursresultat[Resultat],tabell_kursresultat[Kurs],Beräkningar!$C30,tabell_kursresultat[Typ],Beräkningar!AC$5)*Inställningar!E33,\"\")","v":""},{"$f":"IFERROR(AVERAGEIFS(tabell_kursresultat[Resultat],tabell_kursresultat[Kurs],Beräkningar!$C30,tabell_kursresultat[Typ],Beräkningar!AD$5)*Inställningar!F33,\"\")","v":""},{"$f":"IFERROR(AVERAGEIFS(tabell_kursresultat[Resultat],tabell_kursresultat[Kurs],Beräkningar!$C30,tabell_kursresultat[Typ],Beräkningar!AE$5)*Inställningar!G33,\"\")","v":""},{"$f":"IFERROR(AVERAGEIFS(tabell_kursresultat[Resultat],tabell_kursresultat[Kurs],Beräkningar!$C30,tabell_kursresultat[Typ],Beräkningar!AF$5)*Inställningar!H33,\"\")","v":""},{"$f":"IFERROR(AVERAGEIFS(tabell_kursresultat[Resultat],tabell_kursresultat[Kurs],Beräkningar!$C30,tabell_kursresultat[Typ],Beräkningar!AG$5)*Inställningar!I33,\"\")","v":""},{"$f":"IFERROR(AVERAGEIFS(tabell_kursresultat[Resultat],tabell_kursresultat[Kurs],Beräkningar!$C30,tabell_kursresultat[Typ],Beräkningar!AH$5)*Inställningar!J33,\"\")","v":""},{"$f":"IFERROR(AVERAGEIFS(tabell_kursresultat[Resultat],tabell_kursresultat[Kurs],Beräkningar!$C30,tabell_kursresultat[Typ],Beräkningar!AI$5)*Inställningar!K33,\"\")","v":""},0,{"$f":"SUMIFS(Inställningar!E28:K28,Beräkningar!AC30:AI30,\">0\")","v":0},"","",""]
[]
[]
[null,1,{"$f":"Resultatuppföljning!C4&COUNTIF(Resultatuppföljning!$C$4:C4,Resultatuppföljning!C4)","v":"Modern franska1"}]
[null,2,{"$f":"Resultatuppföljning!C5&COUNTIF(Resultatuppföljning!$C$4:C5,Resultatuppföljning!C5)","v":"Avancerad Java-programmering1"}]
[null,3,{"$f":"Resultatuppföljning!C6&COUNTIF(Resultatuppföljning!$C$4:C6,Resultatuppföljning!C6)","v":"Spanska1"}]
[null,4,{"$f":"Resultatuppföljning!C7&COUNTIF(Resultatuppföljning!$C$4:C7,Resultatuppföljning!C7)","v":"Teoretisk fysik1"}]
[null,5,{"$f":"Resultatuppföljning!C8&COUNTIF(Resultatuppföljning!$C$4:C8,Resultatuppföljning!C8)","v":"Modern franska2"}]
[null,6,{"$f":"Resultatuppföljning!C9&COUNTIF(Resultatuppföljning!$C$4:C9,Resultatuppföljning!C9)","v":"Modern franska3"}]
[null,7,{"$f":"Resultatuppföljning!C10&COUNTIF(Resultatuppföljning!$C$4:C10,Resultatuppföljning!C10)","v":"Uppsats1"}]
[null,8,{"$f":"Resultatuppföljning!C11&COUNTIF(Resultatuppföljning!$C$4:C11,Resultatuppföljning!C11)","v":"Matematik 11"}]
[null,9,{"$f":"Resultatuppföljning!C12&COUNTIF(Resultatuppföljning!$C$4:C12,Resultatuppföljning!C12)","v":"Matematik 21"}]
[null,10,{"$f":"Resultatuppföljning!C13&COUNTIF(Resultatuppföljning!$C$4:C14,Resultatuppföljning!C13)","v":"Matematik 12"}]
[null,11,{"$f":"Resultatuppföljning!C14&COUNTIF(Resultatuppföljning!$C$4:C14,Resultatuppföljning!C14)","v":"Matematik 22"}]
[null,12,{"$f":"Resultatuppföljning!C15&COUNTIF(Resultatuppföljning!$C$4:C15,Resultatuppföljning!C15)","v":"0"}]
[null,13,{"$f":"Resultatuppföljning!C16&COUNTIF(Resultatuppföljning!$C$4:C16,Resultatuppföljning!C16)","v":"0"}]
[null,14,{"$f":"Resultatuppföljning!C17&COUNTIF(Resultatuppföljning!$C$4:C17,Resultatuppföljning!C17)","v":"0"}]
[null,15,{"$f":"Resultatuppföljning!C18&COUNTIF(Resultatuppföljning!$C$4:C18,Resultatuppföljning!C18)","v":"0"}]
[null,16,{"$f":"Resultatuppföljning!C19&COUNTIF(Resultatuppföljning!$C$4:C19,Resultatuppföljning!C19)","v":"0"}]
[null,17,{"$f":"Resultatuppföljning!C20&COUNTIF(Resultatuppföljning!$C$4:C20,Resultatuppföljning!C20)","v":"0"}]
[null,18,{"$f":"Resultatuppföljning!C21&COUNTIF(Resultatuppföljning!$C$4:C21,Resultatuppföljning!C21)","v":"0"}]
[null,19,{"$f":"Resultatuppföljning!C22&COUNTIF(Resultatuppföljning!$C$4:C22,Resultatuppföljning!C22)","v":"0"}]
[null,20,{"$f":"Resultatuppföljning!C23&COUNTIF(Resultatuppföljning!$C$4:C23,Resultatuppföljning!C23)","v":"0"}]
[null,21,{"$f":"Resultatuppföljning!C24&COUNTIF(Resultatuppföljning!$C$4:C24,Resultatuppföljning!C24)","v":"0"}]
[null,22,{"$f":"Resultatuppföljning!C25&COUNTIF(Resultatuppföljning!$C$4:C25,Resultatuppföljning!C25)","v":"0"}]
[null,23,{"$f":"Resultatuppföljning!C26&COUNTIF(Resultatuppföljning!$C$4:C26,Resultatuppföljning!C26)","v":"0"}]
[null,24,{"$f":"Resultatuppföljning!C27&COUNTIF(Resultatuppföljning!$C$4:C27,Resultatuppföljning!C27)","v":"0"}]
[null,25,{"$f":"Resultatuppföljning!C28&COUNTIF(Resultatuppföljning!$C$4:C28,Resultatuppföljning!C28)","v":"0"}]
[null,26,{"$f":"Resultatuppföljning!C29&COUNTIF(Resultatuppföljning!$C$4:C29,Resultatuppföljning!C29)","v":"0"}]
[null,27,{"$f":"Resultatuppföljning!C30&COUNTIF(Resultatuppföljning!$C$4:C30,Resultatuppföljning!C30)","v":"0"}]
[null,28,{"$f":"Resultatuppföljning!C31&COUNTIF(Resultatuppföljning!$C$4:C31,Resultatuppföljning!C31)","v":"0"}]
[null,29,{"$f":"Resultatuppföljning!C32&COUNTIF(Resultatuppföljning!$C$4:C32,Resultatuppföljning!C32)","v":"0"}]
[null,30,{"$f":"Resultatuppföljning!C33&COUNTIF(Resultatuppföljning!$C$4:C33,Resultatuppföljning!C33)","v":"0"}]
[null,31,{"$f":"Resultatuppföljning!C34&COUNTIF(Resultatuppföljning!$C$4:C34,Resultatuppföljning!C34)","v":"0"}]
[null,32,{"$f":"Resultatuppföljning!C35&COUNTIF(Resultatuppföljning!$C$4:C35,Resultatuppföljning!C35)","v":"0"}]
[null,33,{"$f":"Resultatuppföljning!C36&COUNTIF(Resultatuppföljning!$C$4:C36,Resultatuppföljning!C36)","v":"0"}]
[null,34,{"$f":"Resultatuppföljning!C37&COUNTIF(Resultatuppföljning!$C$4:C37,Resultatuppföljning!C37)","v":"0"}]
[null,35,{"$f":"Resultatuppföljning!C38&COUNTIF(Resultatuppföljning!$C$4:C38,Resultatuppföljning!C38)","v":"0"}]
[null,36,{"$f":"Resultatuppföljning!C39&COUNTIF(Resultatuppföljning!$C$4:C39,Resultatuppföljning!C39)","v":"0"}]
[null,37,{"$f":"Resultatuppföljning!C40&COUNTIF(Resultatuppföljning!$C$4:C40,Resultatuppföljning!C40)","v":"0"}]
[null,38,{"$f":"Resultatuppföljning!C41&COUNTIF(Resultatuppföljning!$C$4:C41,Resultatuppföljning!C41)","v":"0"}]
[null,39,{"$f":"Resultatuppföljning!C42&COUNTIF(Resultatuppföljning!$C$4:C42,Resultatuppföljning!C42)","v":"0"}]
[null,40,{"$f":"Resultatuppföljning!C43&COUNTIF(Resultatuppföljning!$C$4:C43,Resultatuppföljning!C43)","v":"0"}]
[null,41,{"$f":"Resultatuppföljning!C44&COUNTIF(Resultatuppföljning!$C$4:C44,Resultatuppföljning!C44)","v":"0"}]
[null,42,{"$f":"Resultatuppföljning!C45&COUNTIF(Resultatuppföljning!$C$4:C45,Resultatuppföljning!C45)","v":"0"}]
[null,43,{"$f":"Resultatuppföljning!C46&COUNTIF(Resultatuppföljning!$C$4:C46,Resultatuppföljning!C46)","v":"0"}]
[null,44,{"$f":"Resultatuppföljning!C47&COUNTIF(Resultatuppföljning!$C$4:C47,Resultatuppföljning!C47)","v":"0"}]
[null,45,{"$f":"Resultatuppföljning!C48&COUNTIF(Resultatuppföljning!$C$4:C48,Resultatuppföljning!C48)","v":"0"}]
[null,46,{"$f":"Resultatuppföljning!C49&COUNTIF(Resultatuppföljning!$C$4:C49,Resultatuppföljning!C49)","v":"0"}]
[null,47,{"$f":"Resultatuppföljning!C50&COUNTIF(Resultatuppföljning!$C$4:C50,Resultatuppföljning!C50)","v":"0"}]
[null,48,{"$f":"Resultatuppföljning!C51&COUNTIF(Resultatuppföljning!$C$4:C51,Resultatuppföljning!C51)","v":"0"}]
[null,49,{"$f":"Resultatuppföljning!C52&COUNTIF(Resultatuppföljning!$C$4:C52,Resultatuppföljning!C52)","v":"0"}]
[null,50,{"$f":"Resultatuppföljning!C53&COUNTIF(Resultatuppföljning!$C$4:C53,Resultatuppföljning!C53)","v":"0"}]
[null,51,{"$f":"Resultatuppföljning!C54&COUNTIF(Resultatuppföljning!$C$4:C54,Resultatuppföljning!C54)","v":"0"}]
[null,52,{"$f":"Resultatuppföljning!C55&COUNTIF(Resultatuppföljning!$C$4:C55,Resultatuppföljning!C55)","v":"0"}]
[null,53,{"$f":"Resultatuppföljning!C56&COUNTIF(Resultatuppföljning!$C$4:C56,Resultatuppföljning!C56)","v":"0"}]
[null,54,{"$f":"Resultatuppföljning!C57&COUNTIF(Resultatuppföljning!$C$4:C57,Resultatuppföljning!C57)","v":"0"}]
[null,55,{"$f":"Resultatuppföljning!C58&COUNTIF(Resultatuppföljning!$C$4:C58,Resultatuppföljning!C58)","v":"0"}]
[null,56,{"$f":"Resultatuppföljning!C59&COUNTIF(Resultatuppföljning!$C$4:C59,Resultatuppföljning!C59)","v":"0"}]
[null,57,{"$f":"Resultatuppföljning!C60&COUNTIF(Resultatuppföljning!$C$4:C60,Resultatuppföljning!C60)","v":"0"}]
[null,58,{"$f":"Resultatuppföljning!C61&COUNTIF(Resultatuppföljning!$C$4:C61,Resultatuppföljning!C61)","v":"0"}]
[null,59,{"$f":"Resultatuppföljning!C62&COUNTIF(Resultatuppföljning!$C$4:C62,Resultatuppföljning!C62)","v":"0"}]
[null,60,{"$f":"Resultatuppföljning!C63&COUNTIF(Resultatuppföljning!$C$4:C63,Resultatuppföljning!C63)","v":"0"}]
[null,61,{"$f":"Resultatuppföljning!C64&COUNTIF(Resultatuppföljning!$C$4:C64,Resultatuppföljning!C64)","v":"0"}]
[null,62,{"$f":"Resultatuppföljning!C65&COUNTIF(Resultatuppföljning!$C$4:C65,Resultatuppföljning!C65)","v":"0"}]
[null,63,{"$f":"Resultatuppföljning!C66&COUNTIF(Resultatuppföljning!$C$4:C66,Resultatuppföljning!C66)","v":"0"}]
[null,64,{"$f":"Resultatuppföljning!C67&COUNTIF(Resultatuppföljning!$C$4:C67,Resultatuppföljning!C67)","v":"0"}]
[null,65,{"$f":"Resultatuppföljning!C68&COUNTIF(Resultatuppföljning!$C$4:C68,Resultatuppföljning!C68)","v":"0"}]
[null,66,{"$f":"Resultatuppföljning!C69&COUNTIF(Resultatuppföljning!$C$4:C69,Resultatuppföljning!C69)","v":"0"}]
[null,67,{"$f":"Resultatuppföljning!C70&COUNTIF(Resultatuppföljning!$C$4:C70,Resultatuppföljning!C70)","v":"0"}]
[null,68,{"$f":"Resultatuppföljning!C71&COUNTIF(Resultatuppföljning!$C$4:C71,Resultatuppföljning!C71)","v":"0"}]
[null,69,{"$f":"Resultatuppföljning!C72&COUNTIF(Resultatuppföljning!$C$4:C72,Resultatuppföljning!C72)","v":"0"}]
[null,70,{"$f":"Resultatuppföljning!C73&COUNTIF(Resultatuppföljning!$C$4:C73,Resultatuppföljning!C73)","v":"0"}]
[null,71,{"$f":"Resultatuppföljning!C74&COUNTIF(Resultatuppföljning!$C$4:C74,Resultatuppföljning!C74)","v":"0"}]
[null,72,{"$f":"Resultatuppföljning!C75&COUNTIF(Resultatuppföljning!$C$4:C75,Resultatuppföljning!C75)","v":"0"}]
[null,73,{"$f":"Resultatuppföljning!C76&COUNTIF(Resultatuppföljning!$C$4:C76,Resultatuppföljning!C76)","v":"0"}]
[null,74,{"$f":"Resultatuppföljning!C77&COUNTIF(Resultatuppföljning!$C$4:C77,Resultatuppföljning!C77)","v":"0"}]
[null,75,{"$f":"Resultatuppföljning!C78&COUNTIF(Resultatuppföljning!$C$4:C78,Resultatuppföljning!C78)","v":"0"}]
[null,76,{"$f":"Resultatuppföljning!C79&COUNTIF(Resultatuppföljning!$C$4:C79,Resultatuppföljning!C79)","v":"0"}]
[null,77,{"$f":"Resultatuppföljning!C80&COUNTIF(Resultatuppföljning!$C$4:C80,Resultatuppföljning!C80)","v":"0"}]
[null,78,{"$f":"Resultatuppföljning!C81&COUNTIF(Resultatuppföljning!$C$4:C81,Resultatuppföljning!C81)","v":"0"}]
[null,79,{"$f":"Resultatuppföljning!C82&COUNTIF(Resultatuppföljning!$C$4:C82,Resultatuppföljning!C82)","v":"0"}]
[null,80,{"$f":"Resultatuppföljning!C83&COUNTIF(Resultatuppföljning!$C$4:C83,Resultatuppföljning!C83)","v":"0"}]
[null,81,{"$f":"Resultatuppföljning!C84&COUNTIF(Resultatuppföljning!$C$4:C84,Resultatuppföljning!C84)","v":"0"}]
[null,82,{"$f":"Resultatuppföljning!C85&COUNTIF(Resultatuppföljning!$C$4:C85,Resultatuppföljning!C85)","v":"0"}]
[null,83,{"$f":"Resultatuppföljning!C86&COUNTIF(Resultatuppföljning!$C$4:C86,Resultatuppföljning!C86)","v":"0"}]
[null,84,{"$f":"Resultatuppföljning!C87&COUNTIF(Resultatuppföljning!$C$4:C87,Resultatuppföljning!C87)","v":"0"}]
[null,85,{"$f":"Resultatuppföljning!C88&COUNTIF(Resultatuppföljning!$C$4:C88,Resultatuppföljning!C88)","v":"0"}]
[null,86,{"$f":"Resultatuppföljning!C89&COUNTIF(Resultatuppföljning!$C$4:C89,Resultatuppföljning!C89)","v":"0"}]
[null,87,{"$f":"Resultatuppföljning!C90&COUNTIF(Resultatuppföljning!$C$4:C90,Resultatuppföljning!C90)","v":"0"}]
[null,88,{"$f":"Resultatuppföljning!C91&COUNTIF(Resultatuppföljning!$C$4:C91,Resultatuppföljning!C91)","v":"0"}]
[null,89,{"$f":"Resultatuppföljning!C92&COUNTIF(Resultatuppföljning!$C$4:C92,Resultatuppföljning!C92)","v":"0"}]
[null,90,{"$f":"Resultatuppföljning!C93&COUNTIF(Resultatuppföljning!$C$4:C93,Resultatuppföljning!C93)","v":"0"}]
[null,91,{"$f":"Resultatuppföljning!C94&COUNTIF(Resultatuppföljning!$C$4:C94,Resultatuppföljning!C94)","v":"0"}]
[null,92,{"$f":"Resultatuppföljning!C95&COUNTIF(Resultatuppföljning!$C$4:C95,Resultatuppföljning!C95)","v":"0"}]
[null,93,{"$f":"Resultatuppföljning!C96&COUNTIF(Resultatuppföljning!$C$4:C96,Resultatuppföljning!C96)","v":"0"}]
[null,94,{"$f":"Resultatuppföljning!C97&COUNTIF(Resultatuppföljning!$C$4:C97,Resultatuppföljning!C97)","v":"0"}]
[null,95,{"$f":"Resultatuppföljning!C98&COUNTIF(Resultatuppföljning!$C$4:C98,Resultatuppföljning!C98)","v":"0"}]
[null,96,{"$f":"Resultatuppföljning!C99&COUNTIF(Resultatuppföljning!$C$4:C99,Resultatuppföljning!C99)","v":"0"}]
[null,97,{"$f":"Resultatuppföljning!C100&COUNTIF(Resultatuppföljning!$C$4:C100,Resultatuppföljning!C100)","v":"0"}]
[null,98,{"$f":"Resultatuppföljning!C101&COUNTIF(Resultatuppföljning!$C$4:C101,Resultatuppföljning!C101)","v":"0"}]
[null,99,{"$f":"Resultatuppföljning!C102&COUNTIF(Resultatuppföljning!$C$4:C102,Resultatuppföljning!C102)","v":"0"}]
[null,100,{"$f":"Resultatuppföljning!C103&COUNTIF(Resultatuppföljning!$C$4:C103,Resultatuppföljning!C103)","v":"0"}]
[null,101,{"$f":"Resultatuppföljning!C104&COUNTIF(Resultatuppföljning!$C$4:C104,Resultatuppföljning!C104)","v":"0"}]
[null,102,{"$f":"Resultatuppföljning!C105&COUNTIF(Resultatuppföljning!$C$4:C105,Resultatuppföljning!C105)","v":"0"}]
[null,103,{"$f":"Resultatuppföljning!C106&COUNTIF(Resultatuppföljning!$C$4:C106,Resultatuppföljning!C106)","v":"0"}]
[null,104,{"$f":"Resultatuppföljning!C107&COUNTIF(Resultatuppföljning!$C$4:C107,Resultatuppföljning!C107)","v":"0"}]
[null,105,{"$f":"Resultatuppföljning!C108&COUNTIF(Resultatuppföljning!$C$4:C108,Resultatuppföljning!C108)","v":"0"}]
[null,106,{"$f":"Resultatuppföljning!C109&COUNTIF(Resultatuppföljning!$C$4:C109,Resultatuppföljning!C109)","v":"0"}]
[null,107,{"$f":"Resultatuppföljning!C110&COUNTIF(Resultatuppföljning!$C$4:C110,Resultatuppföljning!C110)","v":"0"}]
[null,108,{"$f":"Resultatuppföljning!C111&COUNTIF(Resultatuppföljning!$C$4:C111,Resultatuppföljning!C111)","v":"0"}]
[null,109,{"$f":"Resultatuppföljning!C112&COUNTIF(Resultatuppföljning!$C$4:C112,Resultatuppföljning!C112)","v":"0"}]
[null,110,{"$f":"Resultatuppföljning!C113&COUNTIF(Resultatuppföljning!$C$4:C113,Resultatuppföljning!C113)","v":"0"}]
[null,111,{"$f":"Resultatuppföljning!C114&COUNTIF(Resultatuppföljning!$C$4:C114,Resultatuppföljning!C114)","v":"0"}]
[null,112,{"$f":"Resultatuppföljning!C115&COUNTIF(Resultatuppföljning!$C$4:C115,Resultatuppföljning!C115)","v":"0"}]
[null,113,{"$f":"Resultatuppföljning!C116&COUNTIF(Resultatuppföljning!$C$4:C116,Resultatuppföljning!C116)","v":"0"}]
[null,114,{"$f":"Resultatuppföljning!C117&COUNTIF(Resultatuppföljning!$C$4:C117,Resultatuppföljning!C117)","v":"0"}]
[null,115,{"$f":"Resultatuppföljning!C118&COUNTIF(Resultatuppföljning!$C$4:C118,Resultatuppföljning!C118)","v":"0"}]
[null,116,{"$f":"Resultatuppföljning!C119&COUNTIF(Resultatuppföljning!$C$4:C119,Resultatuppföljning!C119)","v":"0"}]
[null,117,{"$f":"Resultatuppföljning!C120&COUNTIF(Resultatuppföljning!$C$4:C120,Resultatuppföljning!C120)","v":"0"}]
[null,118,{"$f":"Resultatuppföljning!C121&COUNTIF(Resultatuppföljning!$C$4:C121,Resultatuppföljning!C121)","v":"0"}]
[null,119,{"$f":"Resultatuppföljning!C122&COUNTIF(Resultatuppföljning!$C$4:C122,Resultatuppföljning!C122)","v":"0"}]
[null,120,{"$f":"Resultatuppföljning!C123&COUNTIF(Resultatuppföljning!$C$4:C123,Resultatuppföljning!C123)","v":"0"}]
[null,121,{"$f":"Resultatuppföljning!C124&COUNTIF(Resultatuppföljning!$C$4:C124,Resultatuppföljning!C124)","v":"0"}]
[null,122,{"$f":"Resultatuppföljning!C125&COUNTIF(Resultatuppföljning!$C$4:C125,Resultatuppföljning!C125)","v":"0"}]
[null,123,{"$f":"Resultatuppföljning!C126&COUNTIF(Resultatuppföljning!$C$4:C126,Resultatuppföljning!C126)","v":"0"}]
[null,124,{"$f":"Resultatuppföljning!C127&COUNTIF(Resultatuppföljning!$C$4:C127,Resultatuppföljning!C127)","v":"0"}]
[null,125,{"$f":"Resultatuppföljning!C128&COUNTIF(Resultatuppföljning!$C$4:C128,Resultatuppföljning!C128)","v":"0"}]
[null,126,{"$f":"Resultatuppföljning!C129&COUNTIF(Resultatuppföljning!$C$4:C129,Resultatuppföljning!C129)","v":"0"}]
[null,127,{"$f":"Resultatuppföljning!C130&COUNTIF(Resultatuppföljning!$C$4:C130,Resultatuppföljning!C130)","v":"0"}]
[null,128,{"$f":"Resultatuppföljning!C131&COUNTIF(Resultatuppföljning!$C$4:C131,Resultatuppföljning!C131)","v":"0"}]
[null,129,{"$f":"Resultatuppföljning!C132&COUNTIF(Resultatuppföljning!$C$4:C132,Resultatuppföljning!C132)","v":"0"}]
[null,130,{"$f":"Resultatuppföljning!C133&COUNTIF(Resultatuppföljning!$C$4:C133,Resultatuppföljning!C133)","v":"0"}]
[null,131,{"$f":"Resultatuppföljning!C134&COUNTIF(Resultatuppföljning!$C$4:C134,Resultatuppföljning!C134)","v":"0"}]
[null,132,{"$f":"Resultatuppföljning!C135&COUNTIF(Resultatuppföljning!$C$4:C135,Resultatuppföljning!C135)","v":"0"}]
[null,133,{"$f":"Resultatuppföljning!C136&COUNTIF(Resultatuppföljning!$C$4:C136,Resultatuppföljning!C136)","v":"0"}]
[null,134,{"$f":"Resultatuppföljning!C137&COUNTIF(Resultatuppföljning!$C$4:C137,Resultatuppföljning!C137)","v":"0"}]
[null,135,{"$f":"Resultatuppföljning!C138&COUNTIF(Resultatuppföljning!$C$4:C138,Resultatuppföljning!C138)","v":"0"}]
[null,136,{"$f":"Resultatuppföljning!C139&COUNTIF(Resultatuppföljning!$C$4:C139,Resultatuppföljning!C139)","v":"0"}]
[null,137,{"$f":"Resultatuppföljning!C140&COUNTIF(Resultatuppföljning!$C$4:C140,Resultatuppföljning!C140)","v":"0"}]
[null,138,{"$f":"Resultatuppföljning!C141&COUNTIF(Resultatuppföljning!$C$4:C141,Resultatuppföljning!C141)","v":"0"}]
[null,139,{"$f":"Resultatuppföljning!C142&COUNTIF(Resultatuppföljning!$C$4:C142,Resultatuppföljning!C142)","v":"0"}]
[null,140,{"$f":"Resultatuppföljning!C143&COUNTIF(Resultatuppföljning!$C$4:C143,Resultatuppföljning!C143)","v":"0"}]
[null,141,{"$f":"Resultatuppföljning!C144&COUNTIF(Resultatuppföljning!$C$4:C144,Resultatuppföljning!C144)","v":"0"}]
[null,142,{"$f":"Resultatuppföljning!C145&COUNTIF(Resultatuppföljning!$C$4:C145,Resultatuppföljning!C145)","v":"0"}]
[null,143,{"$f":"Resultatuppföljning!C146&COUNTIF(Resultatuppföljning!$C$4:C146,Resultatuppföljning!C146)","v":"0"}]
[null,144,{"$f":"Resultatuppföljning!C147&COUNTIF(Resultatuppföljning!$C$4:C147,Resultatuppföljning!C147)","v":"0"}]
[null,145,{"$f":"Resultatuppföljning!C148&COUNTIF(Resultatuppföljning!$C$4:C148,Resultatuppföljning!C148)","v":"0"}]
[null,146,{"$f":"Resultatuppföljning!C149&COUNTIF(Resultatuppföljning!$C$4:C149,Resultatuppföljning!C149)","v":"0"}]
[null,147,{"$f":"Resultatuppföljning!C150&COUNTIF(Resultatuppföljning!$C$4:C150,Resultatuppföljning!C150)","v":"0"}]
[null,148,{"$f":"Resultatuppföljning!C151&COUNTIF(Resultatuppföljning!$C$4:C151,Resultatuppföljning!C151)","v":"0"}]
[null,149,{"$f":"Resultatuppföljning!C152&COUNTIF(Resultatuppföljning!$C$4:C152,Resultatuppföljning!C152)","v":"0"}]
[null,150,{"$f":"Resultatuppföljning!C153&COUNTIF(Resultatuppföljning!$C$4:C153,Resultatuppföljning!C153)","v":"0"}]
[null,151,{"$f":"Resultatuppföljning!C154&COUNTIF(Resultatuppföljning!$C$4:C154,Resultatuppföljning!C154)","v":"0"}]
[null,152,{"$f":"Resultatuppföljning!C155&COUNTIF(Resultatuppföljning!$C$4:C155,Resultatuppföljning!C155)","v":"0"}]
[null,153,{"$f":"Resultatuppföljning!C156&COUNTIF(Resultatuppföljning!$C$4:C156,Resultatuppföljning!C156)","v":"0"}]
[null,154,{"$f":"Resultatuppföljning!C157&COUNTIF(Resultatuppföljning!$C$4:C157,Resultatuppföljning!C157)","v":"0"}]
[null,155,{"$f":"Resultatuppföljning!C158&COUNTIF(Resultatuppföljning!$C$4:C158,Resultatuppföljning!C158)","v":"0"}]
[null,156,{"$f":"Resultatuppföljning!C159&COUNTIF(Resultatuppföljning!$C$4:C159,Resultatuppföljning!C159)","v":"0"}]
[null,157,{"$f":"Resultatuppföljning!C160&COUNTIF(Resultatuppföljning!$C$4:C160,Resultatuppföljning!C160)","v":"0"}]
[null,158,{"$f":"Resultatuppföljning!C161&COUNTIF(Resultatuppföljning!$C$4:C161,Resultatuppföljning!C161)","v":"0"}]
[null,159,{"$f":"Resultatuppföljning!C162&COUNTIF(Resultatuppföljning!$C$4:C162,Resultatuppföljning!C162)","v":"0"}]
[null,160,{"$f":"Resultatuppföljning!C163&COUNTIF(Resultatuppföljning!$C$4:C163,Resultatuppföljning!C163)","v":"0"}]
[null,161,{"$f":"Resultatuppföljning!C164&COUNTIF(Resultatuppföljning!$C$4:C164,Resultatuppföljning!C164)","v":"0"}]
[null,162,{"$f":"Resultatuppföljning!C165&COUNTIF(Resultatuppföljning!$C$4:C165,Resultatuppföljning!C165)","v":"0"}]
[null,163,{"$f":"Resultatuppföljning!C166&COUNTIF(Resultatuppföljning!$C$4:C166,Resultatuppföljning!C166)","v":"0"}]
[null,164,{"$f":"Resultatuppföljning!C167&COUNTIF(Resultatuppföljning!$C$4:C167,Resultatuppföljning!C167)","v":"0"}]
[null,165,{"$f":"Resultatuppföljning!C168&COUNTIF(Resultatuppföljning!$C$4:C168,Resultatuppföljning!C168)","v":"0"}]
[null,166,{"$f":"Resultatuppföljning!C169&COUNTIF(Resultatuppföljning!$C$4:C169,Resultatuppföljning!C169)","v":"0"}]
[null,167,{"$f":"Resultatuppföljning!C170&COUNTIF(Resultatuppföljning!$C$4:C170,Resultatuppföljning!C170)","v":"0"}]
[null,168,{"$f":"Resultatuppföljning!C171&COUNTIF(Resultatuppföljning!$C$4:C171,Resultatuppföljning!C171)","v":"0"}]
[null,169,{"$f":"Resultatuppföljning!C172&COUNTIF(Resultatuppföljning!$C$4:C172,Resultatuppföljning!C172)","v":"0"}]
[null,170,{"$f":"Resultatuppföljning!C173&COUNTIF(Resultatuppföljning!$C$4:C173,Resultatuppföljning!C173)","v":"0"}]
[null,171,{"$f":"Resultatuppföljning!C174&COUNTIF(Resultatuppföljning!$C$4:C174,Resultatuppföljning!C174)","v":"0"}]
[null,172,{"$f":"Resultatuppföljning!C175&COUNTIF(Resultatuppföljning!$C$4:C175,Resultatuppföljning!C175)","v":"0"}]
[null,173,{"$f":"Resultatuppföljning!C176&COUNTIF(Resultatuppföljning!$C$4:C176,Resultatuppföljning!C176)","v":"0"}]
[null,174,{"$f":"Resultatuppföljning!C177&COUNTIF(Resultatuppföljning!$C$4:C177,Resultatuppföljning!C177)","v":"0"}]
[null,175,{"$f":"Resultatuppföljning!C178&COUNTIF(Resultatuppföljning!$C$4:C178,Resultatuppföljning!C178)","v":"0"}]
[null,176,{"$f":"Resultatuppföljning!C179&COUNTIF(Resultatuppföljning!$C$4:C179,Resultatuppföljning!C179)","v":"0"}]
[null,177,{"$f":"Resultatuppföljning!C180&COUNTIF(Resultatuppföljning!$C$4:C180,Resultatuppföljning!C180)","v":"0"}]
[null,178,{"$f":"Resultatuppföljning!C181&COUNTIF(Resultatuppföljning!$C$4:C181,Resultatuppföljning!C181)","v":"0"}]
[null,179,{"$f":"Resultatuppföljning!C182&COUNTIF(Resultatuppföljning!$C$4:C182,Resultatuppföljning!C182)","v":"0"}]
[null,180,{"$f":"Resultatuppföljning!C183&COUNTIF(Resultatuppföljning!$C$4:C183,Resultatuppföljning!C183)","v":"0"}]
[null,181,{"$f":"Resultatuppföljning!C184&COUNTIF(Resultatuppföljning!$C$4:C184,Resultatuppföljning!C184)","v":"0"}]
[null,182,{"$f":"Resultatuppföljning!C185&COUNTIF(Resultatuppföljning!$C$4:C185,Resultatuppföljning!C185)","v":"0"}]
[null,183,{"$f":"Resultatuppföljning!C186&COUNTIF(Resultatuppföljning!$C$4:C186,Resultatuppföljning!C186)","v":"0"}]
[null,184,{"$f":"Resultatuppföljning!C187&COUNTIF(Resultatuppföljning!$C$4:C187,Resultatuppföljning!C187)","v":"0"}]
[null,185,{"$f":"Resultatuppföljning!C188&COUNTIF(Resultatuppföljning!$C$4:C188,Resultatuppföljning!C188)","v":"0"}]
[null,186,{"$f":"Resultatuppföljning!C189&COUNTIF(Resultatuppföljning!$C$4:C189,Resultatuppföljning!C189)","v":"0"}]
[null,187,{"$f":"Resultatuppföljning!C190&COUNTIF(Resultatuppföljning!$C$4:C190,Resultatuppföljning!C190)","v":"0"}]
[null,188,{"$f":"Resultatuppföljning!C191&COUNTIF(Resultatuppföljning!$C$4:C191,Resultatuppföljning!C191)","v":"0"}]
[null,189,{"$f":"Resultatuppföljning!C192&COUNTIF(Resultatuppföljning!$C$4:C192,Resultatuppföljning!C192)","v":"0"}]
[null,190,{"$f":"Resultatuppföljning!C193&COUNTIF(Resultatuppföljning!$C$4:C193,Resultatuppföljning!C193)","v":"0"}]
[null,191,{"$f":"Resultatuppföljning!C194&COUNTIF(Resultatuppföljning!$C$4:C194,Resultatuppföljning!C194)","v":"0"}]
[null,192,{"$f":"Resultatuppföljning!C195&COUNTIF(Resultatuppföljning!$C$4:C195,Resultatuppföljning!C195)","v":"0"}]
[null,193,{"$f":"Resultatuppföljning!C196&COUNTIF(Resultatuppföljning!$C$4:C196,Resultatuppföljning!C196)","v":"0"}]
[null,194,{"$f":"Resultatuppföljning!C197&COUNTIF(Resultatuppföljning!$C$4:C197,Resultatuppföljning!C197)","v":"0"}]
[null,195,{"$f":"Resultatuppföljning!C198&COUNTIF(Resultatuppföljning!$C$4:C198,Resultatuppföljning!C198)","v":"0"}]
[null,196,{"$f":"Resultatuppföljning!C199&COUNTIF(Resultatuppföljning!$C$4:C199,Resultatuppföljning!C199)","v":"0"}]
[null,197,{"$f":"Resultatuppföljning!C200&COUNTIF(Resultatuppföljning!$C$4:C200,Resultatuppföljning!C200)","v":"0"}]
[null,198,{"$f":"Resultatuppföljning!C201&COUNTIF(Resultatuppföljning!$C$4:C201,Resultatuppföljning!C201)","v":"0"}]
[null,199,{"$f":"Resultatuppföljning!C202&COUNTIF(Resultatuppföljning!$C$4:C202,Resultatuppföljning!C202)","v":"0"}]
[null,200,{"$f":"Resultatuppföljning!C203&COUNTIF(Resultatuppföljning!$C$4:C203,Resultatuppföljning!C203)","v":"0"}]
[null,201,{"$f":"Resultatuppföljning!C204&COUNTIF(Resultatuppföljning!$C$4:C204,Resultatuppföljning!C204)","v":"0"}]
[null,202,{"$f":"Resultatuppföljning!C205&COUNTIF(Resultatuppföljning!$C$4:C205,Resultatuppföljning!C205)","v":"0"}]
[null,203,{"$f":"Resultatuppföljning!C206&COUNTIF(Resultatuppföljning!$C$4:C206,Resultatuppföljning!C206)","v":"0"}]
[null,204,{"$f":"Resultatuppföljning!C207&COUNTIF(Resultatuppföljning!$C$4:C207,Resultatuppföljning!C207)","v":"0"}]
[null,205,{"$f":"Resultatuppföljning!C208&COUNTIF(Resultatuppföljning!$C$4:C208,Resultatuppföljning!C208)","v":"0"}]
[null,206,{"$f":"Resultatuppföljning!C209&COUNTIF(Resultatuppföljning!$C$4:C209,Resultatuppföljning!C209)","v":"0"}]
[null,207,{"$f":"Resultatuppföljning!C210&COUNTIF(Resultatuppföljning!$C$4:C210,Resultatuppföljning!C210)","v":"0"}]
[null,208,{"$f":"Resultatuppföljning!C211&COUNTIF(Resultatuppföljning!$C$4:C211,Resultatuppföljning!C211)","v":"0"}]
[null,209,{"$f":"Resultatuppföljning!C212&COUNTIF(Resultatuppföljning!$C$4:C212,Resultatuppföljning!C212)","v":"0"}]
[null,210,{"$f":"Resultatuppföljning!C213&COUNTIF(Resultatuppföljning!$C$4:C213,Resultatuppföljning!C213)","v":"0"}]
[null,211,{"$f":"Resultatuppföljning!C214&COUNTIF(Resultatuppföljning!$C$4:C214,Resultatuppföljning!C214)","v":"0"}]
[null,212,{"$f":"Resultatuppföljning!C215&COUNTIF(Resultatuppföljning!$C$4:C215,Resultatuppföljning!C215)","v":"0"}]
[null,213,{"$f":"Resultatuppföljning!C216&COUNTIF(Resultatuppföljning!$C$4:C216,Resultatuppföljning!C216)","v":"0"}]
[null,214,{"$f":"Resultatuppföljning!C217&COUNTIF(Resultatuppföljning!$C$4:C217,Resultatuppföljning!C217)","v":"0"}]
[null,215,{"$f":"Resultatuppföljning!C218&COUNTIF(Resultatuppföljning!$C$4:C218,Resultatuppföljning!C218)","v":"0"}]
[null,216,{"$f":"Resultatuppföljning!C219&COUNTIF(Resultatuppföljning!$C$4:C219,Resultatuppföljning!C219)","v":"0"}]
[null,217,{"$f":"Resultatuppföljning!C220&COUNTIF(Resultatuppföljning!$C$4:C220,Resultatuppföljning!C220)","v":"0"}]
[null,218,{"$f":"Resultatuppföljning!C221&COUNTIF(Resultatuppföljning!$C$4:C221,Resultatuppföljning!C221)","v":"0"}]
[null,219,{"$f":"Resultatuppföljning!C222&COUNTIF(Resultatuppföljning!$C$4:C222,Resultatuppföljning!C222)","v":"0"}]
[null,220,{"$f":"Resultatuppföljning!C223&COUNTIF(Resultatuppföljning!$C$4:C223,Resultatuppföljning!C223)","v":"0"}]
[null,221,{"$f":"Resultatuppföljning!C224&COUNTIF(Resultatuppföljning!$C$4:C224,Resultatuppföljning!C224)","v":"0"}]
[null,222,{"$f":"Resultatuppföljning!C225&COUNTIF(Resultatuppföljning!$C$4:C225,Resultatuppföljning!C225)","v":"0"}]
[null,223,{"$f":"Resultatuppföljning!C226&COUNTIF(Resultatuppföljning!$C$4:C226,Resultatuppföljning!C226)","v":"0"}]
[null,224,{"$f":"Resultatuppföljning!C227&COUNTIF(Resultatuppföljning!$C$4:C227,Resultatuppföljning!C227)","v":"0"}]
[null,225,{"$f":"Resultatuppföljning!C228&COUNTIF(Resultatuppföljning!$C$4:C228,Resultatuppföljning!C228)","v":"0"}]
[null,226,{"$f":"Resultatuppföljning!C229&COUNTIF(Resultatuppföljning!$C$4:C229,Resultatuppföljning!C229)","v":"0"}]
[null,227,{"$f":"Resultatuppföljning!C230&COUNTIF(Resultatuppföljning!$C$4:C230,Resultatuppföljning!C230)","v":"0"}]
[null,228,{"$f":"Resultatuppföljning!C231&COUNTIF(Resultatuppföljning!$C$4:C231,Resultatuppföljning!C231)","v":"0"}]
[null,229,{"$f":"Resultatuppföljning!C232&COUNTIF(Resultatuppföljning!$C$4:C232,Resultatuppföljning!C232)","v":"0"}]
[null,230,{"$f":"Resultatuppföljning!C233&COUNTIF(Resultatuppföljning!$C$4:C233,Resultatuppföljning!C233)","v":"0"}]
[null,231,{"$f":"Resultatuppföljning!C234&COUNTIF(Resultatuppföljning!$C$4:C234,Resultatuppföljning!C234)","v":"0"}]
[null,232,{"$f":"Resultatuppföljning!C235&COUNTIF(Resultatuppföljning!$C$4:C235,Resultatuppföljning!C235)","v":"0"}]
[null,233,{"$f":"Resultatuppföljning!C236&COUNTIF(Resultatuppföljning!$C$4:C236,Resultatuppföljning!C236)","v":"0"}]
[null,234,{"$f":"Resultatuppföljning!C237&COUNTIF(Resultatuppföljning!$C$4:C237,Resultatuppföljning!C237)","v":"0"}]
[null,235,{"$f":"Resultatuppföljning!C238&COUNTIF(Resultatuppföljning!$C$4:C238,Resultatuppföljning!C238)","v":"0"}]
[null,236,{"$f":"Resultatuppföljning!C239&COUNTIF(Resultatuppföljning!$C$4:C239,Resultatuppföljning!C239)","v":"0"}]
[null,237,{"$f":"Resultatuppföljning!C240&COUNTIF(Resultatuppföljning!$C$4:C240,Resultatuppföljning!C240)","v":"0"}]
[null,238,{"$f":"Resultatuppföljning!C241&COUNTIF(Resultatuppföljning!$C$4:C241,Resultatuppföljning!C241)","v":"0"}]
[null,239,{"$f":"Resultatuppföljning!C242&COUNTIF(Resultatuppföljning!$C$4:C242,Resultatuppföljning!C242)","v":"0"}]
[null,240,{"$f":"Resultatuppföljning!C243&COUNTIF(Resultatuppföljning!$C$4:C243,Resultatuppföljning!C243)","v":"0"}]
[null,241,{"$f":"Resultatuppföljning!C244&COUNTIF(Resultatuppföljning!$C$4:C244,Resultatuppföljning!C244)","v":"0"}]
[null,242,{"$f":"Resultatuppföljning!C245&COUNTIF(Resultatuppföljning!$C$4:C245,Resultatuppföljning!C245)","v":"0"}]
[null,243,{"$f":"Resultatuppföljning!C246&COUNTIF(Resultatuppföljning!$C$4:C246,Resultatuppföljning!C246)","v":"0"}]
[null,244,{"$f":"Resultatuppföljning!C247&COUNTIF(Resultatuppföljning!$C$4:C247,Resultatuppföljning!C247)","v":"0"}]
[null,245,{"$f":"Resultatuppföljning!C248&COUNTIF(Resultatuppföljning!$C$4:C248,Resultatuppföljning!C248)","v":"0"}]
[null,246,{"$f":"Resultatuppföljning!C249&COUNTIF(Resultatuppföljning!$C$4:C249,Resultatuppföljning!C249)","v":"0"}]
[null,247,{"$f":"Resultatuppföljning!C250&COUNTIF(Resultatuppföljning!$C$4:C250,Resultatuppföljning!C250)","v":"0"}]
[null,248,{"$f":"Resultatuppföljning!C251&COUNTIF(Resultatuppföljning!$C$4:C251,Resultatuppföljning!C251)","v":"0"}]
[null,249,{"$f":"Resultatuppföljning!C252&COUNTIF(Resultatuppföljning!$C$4:C252,Resultatuppföljning!C252)","v":"0"}]
[null,250,{"$f":"Resultatuppföljning!C253&COUNTIF(Resultatuppföljning!$C$4:C253,Resultatuppföljning!C253)","v":"0"}]
[null,251,{"$f":"Resultatuppföljning!C254&COUNTIF(Resultatuppföljning!$C$4:C254,Resultatuppföljning!C254)","v":"0"}]
[null,252,{"$f":"Resultatuppföljning!C255&COUNTIF(Resultatuppföljning!$C$4:C255,Resultatuppföljning!C255)","v":"0"}]
[null,253,{"$f":"Resultatuppföljning!C256&COUNTIF(Resultatuppföljning!$C$4:C256,Resultatuppföljning!C256)","v":"0"}]
[null,254,{"$f":"Resultatuppföljning!C257&COUNTIF(Resultatuppföljning!$C$4:C257,Resultatuppföljning!C257)","v":"0"}]
[null,255,{"$f":"Resultatuppföljning!C258&COUNTIF(Resultatuppföljning!$C$4:C258,Resultatuppföljning!C258)","v":"0"}]
[null,256,{"$f":"Resultatuppföljning!C259&COUNTIF(Resultatuppföljning!$C$4:C259,Resultatuppföljning!C259)","v":"0"}]
[null,257,{"$f":"Resultatuppföljning!C260&COUNTIF(Resultatuppföljning!$C$4:C260,Resultatuppföljning!C260)","v":"0"}]
[null,258,{"$f":"Resultatuppföljning!C261&COUNTIF(Resultatuppföljning!$C$4:C261,Resultatuppföljning!C261)","v":"0"}]
[null,259,{"$f":"Resultatuppföljning!C262&COUNTIF(Resultatuppföljning!$C$4:C262,Resultatuppföljning!C262)","v":"0"}]
[null,260,{"$f":"Resultatuppföljning!C263&COUNTIF(Resultatuppföljning!$C$4:C263,Resultatuppföljning!C263)","v":"0"}]
[null,261,{"$f":"Resultatuppföljning!C264&COUNTIF(Resultatuppföljning!$C$4:C264,Resultatuppföljning!C264)","v":"0"}]
[null,262,{"$f":"Resultatuppföljning!C265&COUNTIF(Resultatuppföljning!$C$4:C265,Resultatuppföljning!C265)","v":"0"}]
[null,263,{"$f":"Resultatuppföljning!C266&COUNTIF(Resultatuppföljning!$C$4:C266,Resultatuppföljning!C266)","v":"0"}]
[null,264,{"$f":"Resultatuppföljning!C267&COUNTIF(Resultatuppföljning!$C$4:C267,Resultatuppföljning!C267)","v":"0"}]
[null,265,{"$f":"Resultatuppföljning!C268&COUNTIF(Resultatuppföljning!$C$4:C268,Resultatuppföljning!C268)","v":"0"}]
[null,266,{"$f":"Resultatuppföljning!C269&COUNTIF(Resultatuppföljning!$C$4:C269,Resultatuppföljning!C269)","v":"0"}]
[null,267,{"$f":"Resultatuppföljning!C270&COUNTIF(Resultatuppföljning!$C$4:C270,Resultatuppföljning!C270)","v":"0"}]
[null,268,{"$f":"Resultatuppföljning!C271&COUNTIF(Resultatuppföljning!$C$4:C271,Resultatuppföljning!C271)","v":"0"}]
[null,269,{"$f":"Resultatuppföljning!C272&COUNTIF(Resultatuppföljning!$C$4:C272,Resultatuppföljning!C272)","v":"0"}]
[null,270,{"$f":"Resultatuppföljning!C273&COUNTIF(Resultatuppföljning!$C$4:C273,Resultatuppföljning!C273)","v":"0"}]
[null,271,{"$f":"Resultatuppföljning!C274&COUNTIF(Resultatuppföljning!$C$4:C274,Resultatuppföljning!C274)","v":"0"}]
[null,272,{"$f":"Resultatuppföljning!C275&COUNTIF(Resultatuppföljning!$C$4:C275,Resultatuppföljning!C275)","v":"0"}]
[null,273,{"$f":"Resultatuppföljning!C276&COUNTIF(Resultatuppföljning!$C$4:C276,Resultatuppföljning!C276)","v":"0"}]
[null,274,{"$f":"Resultatuppföljning!C277&COUNTIF(Resultatuppföljning!$C$4:C277,Resultatuppföljning!C277)","v":"0"}]
[null,275,{"$f":"Resultatuppföljning!C278&COUNTIF(Resultatuppföljning!$C$4:C278,Resultatuppföljning!C278)","v":"0"}]
[null,276,{"$f":"Resultatuppföljning!C279&COUNTIF(Resultatuppföljning!$C$4:C279,Resultatuppföljning!C279)","v":"0"}]
[null,277,{"$f":"Resultatuppföljning!C280&COUNTIF(Resultatuppföljning!$C$4:C280,Resultatuppföljning!C280)","v":"0"}]
[null,278,{"$f":"Resultatuppföljning!C281&COUNTIF(Resultatuppföljning!$C$4:C281,Resultatuppföljning!C281)","v":"0"}]
[null,279,{"$f":"Resultatuppföljning!C282&COUNTIF(Resultatuppföljning!$C$4:C282,Resultatuppföljning!C282)","v":"0"}]
[null,280,{"$f":"Resultatuppföljning!C283&COUNTIF(Resultatuppföljning!$C$4:C283,Resultatuppföljning!C283)","v":"0"}]
[null,281,{"$f":"Resultatuppföljning!C284&COUNTIF(Resultatuppföljning!$C$4:C284,Resultatuppföljning!C284)","v":"0"}]
[null,282,{"$f":"Resultatuppföljning!C285&COUNTIF(Resultatuppföljning!$C$4:C285,Resultatuppföljning!C285)","v":"0"}]
[null,283,{"$f":"Resultatuppföljning!C286&COUNTIF(Resultatuppföljning!$C$4:C286,Resultatuppföljning!C286)","v":"0"}]
[null,284,{"$f":"Resultatuppföljning!C287&COUNTIF(Resultatuppföljning!$C$4:C287,Resultatuppföljning!C287)","v":"0"}]
[null,285,{"$f":"Resultatuppföljning!C288&COUNTIF(Resultatuppföljning!$C$4:C288,Resultatuppföljning!C288)","v":"0"}]
[null,286,{"$f":"Resultatuppföljning!C289&COUNTIF(Resultatuppföljning!$C$4:C289,Resultatuppföljning!C289)","v":"0"}]
[null,287,{"$f":"Resultatuppföljning!C290&COUNTIF(Resultatuppföljning!$C$4:C290,Resultatuppföljning!C290)","v":"0"}]
[null,288,{"$f":"Resultatuppföljning!C291&COUNTIF(Resultatuppföljning!$C$4:C291,Resultatuppföljning!C291)","v":"0"}]
[null,289,{"$f":"Resultatuppföljning!C292&COUNTIF(Resultatuppföljning!$C$4:C292,Resultatuppföljning!C292)","v":"0"}]
[null,290,{"$f":"Resultatuppföljning!C293&COUNTIF(Resultatuppföljning!$C$4:C293,Resultatuppföljning!C293)","v":"0"}]
[null,291,{"$f":"Resultatuppföljning!C294&COUNTIF(Resultatuppföljning!$C$4:C294,Resultatuppföljning!C294)","v":"0"}]
[null,292,{"$f":"Resultatuppföljning!C295&COUNTIF(Resultatuppföljning!$C$4:C295,Resultatuppföljning!C295)","v":"0"}]
[null,293,{"$f":"Resultatuppföljning!C296&COUNTIF(Resultatuppföljning!$C$4:C296,Resultatuppföljning!C296)","v":"0"}]
[null,294,{"$f":"Resultatuppföljning!C297&COUNTIF(Resultatuppföljning!$C$4:C297,Resultatuppföljning!C297)","v":"0"}]
[null,295,{"$f":"Resultatuppföljning!C298&COUNTIF(Resultatuppföljning!$C$4:C298,Resultatuppföljning!C298)","v":"0"}]
[null,296,{"$f":"Resultatuppföljning!C299&COUNTIF(Resultatuppföljning!$C$4:C299,Resultatuppföljning!C299)","v":"0"}]
[null,297,{"$f":"Resultatuppföljning!C300&COUNTIF(Resultatuppföljning!$C$4:C300,Resultatuppföljning!C300)","v":"0"}]
[null,298,{"$f":"Resultatuppföljning!C301&COUNTIF(Resultatuppföljning!$C$4:C301,Resultatuppföljning!C301)","v":"0"}]
[null,299,{"$f":"Resultatuppföljning!C302&COUNTIF(Resultatuppföljning!$C$4:C302,Resultatuppföljning!C302)","v":"0"}]
[null,300,{"$f":"Resultatuppföljning!C303&COUNTIF(Resultatuppföljning!$C$4:C303,Resultatuppföljning!C303)","v":"0"}]
[null,301,{"$f":"Resultatuppföljning!C304&COUNTIF(Resultatuppföljning!$C$4:C304,Resultatuppföljning!C304)","v":"0"}]
[null,302,{"$f":"Resultatuppföljning!C305&COUNTIF(Resultatuppföljning!$C$4:C305,Resultatuppföljning!C305)","v":"0"}]
[null,303,{"$f":"Resultatuppföljning!C306&COUNTIF(Resultatuppföljning!$C$4:C306,Resultatuppföljning!C306)","v":"0"}]
[null,304,{"$f":"Resultatuppföljning!C307&COUNTIF(Resultatuppföljning!$C$4:C307,Resultatuppföljning!C307)","v":"0"}]
[null,305,{"$f":"Resultatuppföljning!C308&COUNTIF(Resultatuppföljning!$C$4:C308,Resultatuppföljning!C308)","v":"0"}]
[null,306,{"$f":"Resultatuppföljning!C309&COUNTIF(Resultatuppföljning!$C$4:C309,Resultatuppföljning!C309)","v":"0"}]
[null,307,{"$f":"Resultatuppföljning!C310&COUNTIF(Resultatuppföljning!$C$4:C310,Resultatuppföljning!C310)","v":"0"}]
[null,308,{"$f":"Resultatuppföljning!C311&COUNTIF(Resultatuppföljning!$C$4:C311,Resultatuppföljning!C311)","v":"0"}]
[null,309,{"$f":"Resultatuppföljning!C312&COUNTIF(Resultatuppföljning!$C$4:C312,Resultatuppföljning!C312)","v":"0"}]
[null,310,{"$f":"Resultatuppföljning!C313&COUNTIF(Resultatuppföljning!$C$4:C313,Resultatuppföljning!C313)","v":"0"}]
[null,311,{"$f":"Resultatuppföljning!C314&COUNTIF(Resultatuppföljning!$C$4:C314,Resultatuppföljning!C314)","v":"0"}]
[null,312,{"$f":"Resultatuppföljning!C315&COUNTIF(Resultatuppföljning!$C$4:C315,Resultatuppföljning!C315)","v":"0"}]
[null,313,{"$f":"Resultatuppföljning!C316&COUNTIF(Resultatuppföljning!$C$4:C316,Resultatuppföljning!C316)","v":"0"}]
[null,314,{"$f":"Resultatuppföljning!C317&COUNTIF(Resultatuppföljning!$C$4:C317,Resultatuppföljning!C317)","v":"0"}]
[null,315,{"$f":"Resultatuppföljning!C318&COUNTIF(Resultatuppföljning!$C$4:C318,Resultatuppföljning!C318)","v":"0"}]
[null,316,{"$f":"Resultatuppföljning!C319&COUNTIF(Resultatuppföljning!$C$4:C319,Resultatuppföljning!C319)","v":"0"}]
[null,317,{"$f":"Resultatuppföljning!C320&COUNTIF(Resultatuppföljning!$C$4:C320,Resultatuppföljning!C320)","v":"0"}]
[null,318,{"$f":"Resultatuppföljning!C321&COUNTIF(Resultatuppföljning!$C$4:C321,Resultatuppföljning!C321)","v":"0"}]
[null,319,{"$f":"Resultatuppföljning!C322&COUNTIF(Resultatuppföljning!$C$4:C322,Resultatuppföljning!C322)","v":"0"}]
[null,320,{"$f":"Resultatuppföljning!C323&COUNTIF(Resultatuppföljning!$C$4:C323,Resultatuppföljning!C323)","v":"0"}]
[null,321,{"$f":"Resultatuppföljning!C324&COUNTIF(Resultatuppföljning!$C$4:C324,Resultatuppföljning!C324)","v":"0"}]
[null,322,{"$f":"Resultatuppföljning!C325&COUNTIF(Resultatuppföljning!$C$4:C325,Resultatuppföljning!C325)","v":"0"}]
[null,323,{"$f":"Resultatuppföljning!C326&COUNTIF(Resultatuppföljning!$C$4:C326,Resultatuppföljning!C326)","v":"0"}]
[null,324,{"$f":"Resultatuppföljning!C327&COUNTIF(Resultatuppföljning!$C$4:C327,Resultatuppföljning!C327)","v":"0"}]
[null,325,{"$f":"Resultatuppföljning!C328&COUNTIF(Resultatuppföljning!$C$4:C328,Resultatuppföljning!C328)","v":"0"}]
[null,326,{"$f":"Resultatuppföljning!C329&COUNTIF(Resultatuppföljning!$C$4:C329,Resultatuppföljning!C329)","v":"0"}]
[null,327,{"$f":"Resultatuppföljning!C330&COUNTIF(Resultatuppföljning!$C$4:C330,Resultatuppföljning!C330)","v":"0"}]
[null,328,{"$f":"Resultatuppföljning!C331&COUNTIF(Resultatuppföljning!$C$4:C331,Resultatuppföljning!C331)","v":"0"}]
[null,329,{"$f":"Resultatuppföljning!C332&COUNTIF(Resultatuppföljning!$C$4:C332,Resultatuppföljning!C332)","v":"0"}]
[null,330,{"$f":"Resultatuppföljning!C333&COUNTIF(Resultatuppföljning!$C$4:C333,Resultatuppföljning!C333)","v":"0"}]
[null,331,{"$f":"Resultatuppföljning!C334&COUNTIF(Resultatuppföljning!$C$4:C334,Resultatuppföljning!C334)","v":"0"}]
[null,332,{"$f":"Resultatuppföljning!C335&COUNTIF(Resultatuppföljning!$C$4:C335,Resultatuppföljning!C335)","v":"0"}]
[null,333,{"$f":"Resultatuppföljning!C336&COUNTIF(Resultatuppföljning!$C$4:C336,Resultatuppföljning!C336)","v":"0"}]
[null,334,{"$f":"Resultatuppföljning!C337&COUNTIF(Resultatuppföljning!$C$4:C337,Resultatuppföljning!C337)","v":"0"}]
[null,335,{"$f":"Resultatuppföljning!C338&COUNTIF(Resultatuppföljning!$C$4:C338,Resultatuppföljning!C338)","v":"0"}]
[null,336,{"$f":"Resultatuppföljning!C339&COUNTIF(Resultatuppföljning!$C$4:C339,Resultatuppföljning!C339)","v":"0"}]
[null,337,{"$f":"Resultatuppföljning!C340&COUNTIF(Resultatuppföljning!$C$4:C340,Resultatuppföljning!C340)","v":"0"}]
[null,338,{"$f":"Resultatuppföljning!C341&COUNTIF(Resultatuppföljning!$C$4:C341,Resultatuppföljning!C341)","v":"0"}]
[null,339,{"$f":"Resultatuppföljning!C342&COUNTIF(Resultatuppföljning!$C$4:C342,Resultatuppföljning!C342)","v":"0"}]
[null,340,{"$f":"Resultatuppföljning!C343&COUNTIF(Resultatuppföljning!$C$4:C343,Resultatuppföljning!C343)","v":"0"}]
[null,341,{"$f":"Resultatuppföljning!C344&COUNTIF(Resultatuppföljning!$C$4:C344,Resultatuppföljning!C344)","v":"0"}]
[null,342,{"$f":"Resultatuppföljning!C345&COUNTIF(Resultatuppföljning!$C$4:C345,Resultatuppföljning!C345)","v":"0"}]
[null,343,{"$f":"Resultatuppföljning!C346&COUNTIF(Resultatuppföljning!$C$4:C346,Resultatuppföljning!C346)","v":"0"}]
[null,344,{"$f":"Resultatuppföljning!C347&COUNTIF(Resultatuppföljning!$C$4:C347,Resultatuppföljning!C347)","v":"0"}]
[null,345,{"$f":"Resultatuppföljning!C348&COUNTIF(Resultatuppföljning!$C$4:C348,Resultatuppföljning!C348)","v":"0"}]
[null,346,{"$f":"Resultatuppföljning!C349&COUNTIF(Resultatuppföljning!$C$4:C349,Resultatuppföljning!C349)","v":"0"}]
[null,347,{"$f":"Resultatuppföljning!C350&COUNTIF(Resultatuppföljning!$C$4:C350,Resultatuppföljning!C350)","v":"0"}]
[null,348,{"$f":"Resultatuppföljning!C351&COUNTIF(Resultatuppföljning!$C$4:C351,Resultatuppföljning!C351)","v":"0"}]
[null,349,{"$f":"Resultatuppföljning!C352&COUNTIF(Resultatuppföljning!$C$4:C352,Resultatuppföljning!C352)","v":"0"}]
[null,350,{"$f":"Resultatuppföljning!C353&COUNTIF(Resultatuppföljning!$C$4:C353,Resultatuppföljning!C353)","v":"0"}]
[null,351,{"$f":"Resultatuppföljning!C354&COUNTIF(Resultatuppföljning!$C$4:C354,Resultatuppföljning!C354)","v":"0"}]
[null,352,{"$f":"Resultatuppföljning!C355&COUNTIF(Resultatuppföljning!$C$4:C355,Resultatuppföljning!C355)","v":"0"}]
[null,353,{"$f":"Resultatuppföljning!C356&COUNTIF(Resultatuppföljning!$C$4:C356,Resultatuppföljning!C356)","v":"0"}]
[null,354,{"$f":"Resultatuppföljning!C357&COUNTIF(Resultatuppföljning!$C$4:C357,Resultatuppföljning!C357)","v":"0"}]
[null,355,{"$f":"Resultatuppföljning!C358&COUNTIF(Resultatuppföljning!$C$4:C358,Resultatuppföljning!C358)","v":"0"}]
[null,356,{"$f":"Resultatuppföljning!C359&COUNTIF(Resultatuppföljning!$C$4:C359,Resultatuppföljning!C359)","v":"0"}]
[null,357,{"$f":"Resultatuppföljning!C360&COUNTIF(Resultatuppföljning!$C$4:C360,Resultatuppföljning!C360)","v":"0"}]
[null,358,{"$f":"Resultatuppföljning!C361&COUNTIF(Resultatuppföljning!$C$4:C361,Resultatuppföljning!C361)","v":"0"}]
[null,359,{"$f":"Resultatuppföljning!C362&COUNTIF(Resultatuppföljning!$C$4:C362,Resultatuppföljning!C362)","v":"0"}]
[null,360,{"$f":"Resultatuppföljning!C363&COUNTIF(Resultatuppföljning!$C$4:C363,Resultatuppföljning!C363)","v":"0"}]
[null,361,{"$f":"Resultatuppföljning!C364&COUNTIF(Resultatuppföljning!$C$4:C364,Resultatuppföljning!C364)","v":"0"}]
[null,362,{"$f":"Resultatuppföljning!C365&COUNTIF(Resultatuppföljning!$C$4:C365,Resultatuppföljning!C365)","v":"0"}]
[null,363,{"$f":"Resultatuppföljning!C366&COUNTIF(Resultatuppföljning!$C$4:C366,Resultatuppföljning!C366)","v":"0"}]
[null,364,{"$f":"Resultatuppföljning!C367&COUNTIF(Resultatuppföljning!$C$4:C367,Resultatuppföljning!C367)","v":"0"}]
[null,365,{"$f":"Resultatuppföljning!C368&COUNTIF(Resultatuppföljning!$C$4:C368,Resultatuppföljning!C368)","v":"0"}]
[null,366,{"$f":"Resultatuppföljning!C369&COUNTIF(Resultatuppföljning!$C$4:C369,Resultatuppföljning!C369)","v":"0"}]
[null,367,{"$f":"Resultatuppföljning!C370&COUNTIF(Resultatuppföljning!$C$4:C370,Resultatuppföljning!C370)","v":"0"}]
[null,368,{"$f":"Resultatuppföljning!C371&COUNTIF(Resultatuppföljning!$C$4:C371,Resultatuppföljning!C371)","v":"0"}]
[null,369,{"$f":"Resultatuppföljning!C372&COUNTIF(Resultatuppföljning!$C$4:C372,Resultatuppföljning!C372)","v":"0"}]
[null,370,{"$f":"Resultatuppföljning!C373&COUNTIF(Resultatuppföljning!$C$4:C373,Resultatuppföljning!C373)","v":"0"}]
[null,371,{"$f":"Resultatuppföljning!C374&COUNTIF(Resultatuppföljning!$C$4:C374,Resultatuppföljning!C374)","v":"0"}]
[null,372,{"$f":"Resultatuppföljning!C375&COUNTIF(Resultatuppföljning!$C$4:C375,Resultatuppföljning!C375)","v":"0"}]
[null,373,{"$f":"Resultatuppföljning!C376&COUNTIF(Resultatuppföljning!$C$4:C376,Resultatuppföljning!C376)","v":"0"}]
[null,374,{"$f":"Resultatuppföljning!C377&COUNTIF(Resultatuppföljning!$C$4:C377,Resultatuppföljning!C377)","v":"0"}]
[null,375,{"$f":"Resultatuppföljning!C378&COUNTIF(Resultatuppföljning!$C$4:C378,Resultatuppföljning!C378)","v":"0"}]
[null,376,{"$f":"Resultatuppföljning!C379&COUNTIF(Resultatuppföljning!$C$4:C379,Resultatuppföljning!C379)","v":"0"}]
[null,377,{"$f":"Resultatuppföljning!C380&COUNTIF(Resultatuppföljning!$C$4:C380,Resultatuppföljning!C380)","v":"0"}]
[null,378,{"$f":"Resultatuppföljning!C381&COUNTIF(Resultatuppföljning!$C$4:C381,Resultatuppföljning!C381)","v":"0"}]
[null,379,{"$f":"Resultatuppföljning!C382&COUNTIF(Resultatuppföljning!$C$4:C382,Resultatuppföljning!C382)","v":"0"}]
[null,380,{"$f":"Resultatuppföljning!C383&COUNTIF(Resultatuppföljning!$C$4:C383,Resultatuppföljning!C383)","v":"0"}]
[null,381,{"$f":"Resultatuppföljning!C384&COUNTIF(Resultatuppföljning!$C$4:C384,Resultatuppföljning!C384)","v":"0"}]
[null,382,{"$f":"Resultatuppföljning!C385&COUNTIF(Resultatuppföljning!$C$4:C385,Resultatuppföljning!C385)","v":"0"}]
[null,383,{"$f":"Resultatuppföljning!C386&COUNTIF(Resultatuppföljning!$C$4:C386,Resultatuppföljning!C386)","v":"0"}]
[null,384,{"$f":"Resultatuppföljning!C387&COUNTIF(Resultatuppföljning!$C$4:C387,Resultatuppföljning!C387)","v":"0"}]
[null,385,{"$f":"Resultatuppföljning!C388&COUNTIF(Resultatuppföljning!$C$4:C388,Resultatuppföljning!C388)","v":"0"}]
[null,386,{"$f":"Resultatuppföljning!C389&COUNTIF(Resultatuppföljning!$C$4:C389,Resultatuppföljning!C389)","v":"0"}]
[null,387,{"$f":"Resultatuppföljning!C390&COUNTIF(Resultatuppföljning!$C$4:C390,Resultatuppföljning!C390)","v":"0"}]
[null,388,{"$f":"Resultatuppföljning!C391&COUNTIF(Resultatuppföljning!$C$4:C391,Resultatuppföljning!C391)","v":"0"}]
[null,389,{"$f":"Resultatuppföljning!C392&COUNTIF(Resultatuppföljning!$C$4:C392,Resultatuppföljning!C392)","v":"0"}]
[null,390,{"$f":"Resultatuppföljning!C393&COUNTIF(Resultatuppföljning!$C$4:C393,Resultatuppföljning!C393)","v":"0"}]
[null,391,{"$f":"Resultatuppföljning!C394&COUNTIF(Resultatuppföljning!$C$4:C394,Resultatuppföljning!C394)","v":"0"}]
[null,392,{"$f":"Resultatuppföljning!C395&COUNTIF(Resultatuppföljning!$C$4:C395,Resultatuppföljning!C395)","v":"0"}]
[null,393,{"$f":"Resultatuppföljning!C396&COUNTIF(Resultatuppföljning!$C$4:C396,Resultatuppföljning!C396)","v":"0"}]
[null,394,{"$f":"Resultatuppföljning!C397&COUNTIF(Resultatuppföljning!$C$4:C397,Resultatuppföljning!C397)","v":"0"}]
[null,395,{"$f":"Resultatuppföljning!C398&COUNTIF(Resultatuppföljning!$C$4:C398,Resultatuppföljning!C398)","v":"0"}]
[null,396,{"$f":"Resultatuppföljning!C399&COUNTIF(Resultatuppföljning!$C$4:C399,Resultatuppföljning!C399)","v":"0"}]
[null,397,{"$f":"Resultatuppföljning!C400&COUNTIF(Resultatuppföljning!$C$4:C400,Resultatuppföljning!C400)","v":"0"}]
[null,398,{"$f":"Resultatuppföljning!C401&COUNTIF(Resultatuppföljning!$C$4:C401,Resultatuppföljning!C401)","v":"0"}]
[null,399,{"$f":"Resultatuppföljning!C402&COUNTIF(Resultatuppföljning!$C$4:C402,Resultatuppföljning!C402)","v":"0"}]
[null,400,{"$f":"Resultatuppföljning!C403&COUNTIF(Resultatuppföljning!$C$4:C403,Resultatuppföljning!C403)","v":"0"}]
[null,401,{"$f":"Resultatuppföljning!C404&COUNTIF(Resultatuppföljning!$C$4:C404,Resultatuppföljning!C404)","v":"0"}]
[null,402,{"$f":"Resultatuppföljning!C405&COUNTIF(Resultatuppföljning!$C$4:C405,Resultatuppföljning!C405)","v":"0"}]
[null,403,{"$f":"Resultatuppföljning!C406&COUNTIF(Resultatuppföljning!$C$4:C406,Resultatuppföljning!C406)","v":"0"}]
[null,404,{"$f":"Resultatuppföljning!C407&COUNTIF(Resultatuppföljning!$C$4:C407,Resultatuppföljning!C407)","v":"0"}]
[null,405,{"$f":"Resultatuppföljning!C408&COUNTIF(Resultatuppföljning!$C$4:C408,Resultatuppföljning!C408)","v":"0"}]
[null,406,{"$f":"Resultatuppföljning!C409&COUNTIF(Resultatuppföljning!$C$4:C409,Resultatuppföljning!C409)","v":"0"}]
[null,407,{"$f":"Resultatuppföljning!C410&COUNTIF(Resultatuppföljning!$C$4:C410,Resultatuppföljning!C410)","v":"0"}]
[null,408,{"$f":"Resultatuppföljning!C411&COUNTIF(Resultatuppföljning!$C$4:C411,Resultatuppföljning!C411)","v":"0"}]
[null,409,{"$f":"Resultatuppföljning!C412&COUNTIF(Resultatuppföljning!$C$4:C412,Resultatuppföljning!C412)","v":"0"}]
[null,410,{"$f":"Resultatuppföljning!C413&COUNTIF(Resultatuppföljning!$C$4:C413,Resultatuppföljning!C413)","v":"0"}]
[null,411,{"$f":"Resultatuppföljning!C414&COUNTIF(Resultatuppföljning!$C$4:C414,Resultatuppföljning!C414)","v":"0"}]
[null,412,{"$f":"Resultatuppföljning!C415&COUNTIF(Resultatuppföljning!$C$4:C415,Resultatuppföljning!C415)","v":"0"}]
[null,413,{"$f":"Resultatuppföljning!C416&COUNTIF(Resultatuppföljning!$C$4:C416,Resultatuppföljning!C416)","v":"0"}]
[null,414,{"$f":"Resultatuppföljning!C417&COUNTIF(Resultatuppföljning!$C$4:C417,Resultatuppföljning!C417)","v":"0"}]
[null,415,{"$f":"Resultatuppföljning!C418&COUNTIF(Resultatuppföljning!$C$4:C418,Resultatuppföljning!C418)","v":"0"}]
[null,416,{"$f":"Resultatuppföljning!C419&COUNTIF(Resultatuppföljning!$C$4:C419,Resultatuppföljning!C419)","v":"0"}]
[null,417,{"$f":"Resultatuppföljning!C420&COUNTIF(Resultatuppföljning!$C$4:C420,Resultatuppföljning!C420)","v":"0"}]
[null,418,{"$f":"Resultatuppföljning!C421&COUNTIF(Resultatuppföljning!$C$4:C421,Resultatuppföljning!C421)","v":"0"}]
[null,419,{"$f":"Resultatuppföljning!C422&COUNTIF(Resultatuppföljning!$C$4:C422,Resultatuppföljning!C422)","v":"0"}]
[null,420,{"$f":"Resultatuppföljning!C423&COUNTIF(Resultatuppföljning!$C$4:C423,Resultatuppföljning!C423)","v":"0"}]
[null,421,{"$f":"Resultatuppföljning!C424&COUNTIF(Resultatuppföljning!$C$4:C424,Resultatuppföljning!C424)","v":"0"}]
[null,422,{"$f":"Resultatuppföljning!C425&COUNTIF(Resultatuppföljning!$C$4:C425,Resultatuppföljning!C425)","v":"0"}]
[null,423,{"$f":"Resultatuppföljning!C426&COUNTIF(Resultatuppföljning!$C$4:C426,Resultatuppföljning!C426)","v":"0"}]
[null,424,{"$f":"Resultatuppföljning!C427&COUNTIF(Resultatuppföljning!$C$4:C427,Resultatuppföljning!C427)","v":"0"}]
[null,425,{"$f":"Resultatuppföljning!C428&COUNTIF(Resultatuppföljning!$C$4:C428,Resultatuppföljning!C428)","v":"0"}]
[null,426,{"$f":"Resultatuppföljning!C429&COUNTIF(Resultatuppföljning!$C$4:C429,Resultatuppföljning!C429)","v":"0"}]
[null,427,{"$f":"Resultatuppföljning!C430&COUNTIF(Resultatuppföljning!$C$4:C430,Resultatuppföljning!C430)","v":"0"}]
[null,428,{"$f":"Resultatuppföljning!C431&COUNTIF(Resultatuppföljning!$C$4:C431,Resultatuppföljning!C431)","v":"0"}]
[null,429,{"$f":"Resultatuppföljning!C432&COUNTIF(Resultatuppföljning!$C$4:C432,Resultatuppföljning!C432)","v":"0"}]
[null,430,{"$f":"Resultatuppföljning!C433&COUNTIF(Resultatuppföljning!$C$4:C433,Resultatuppföljning!C433)","v":"0"}]
[null,431,{"$f":"Resultatuppföljning!C434&COUNTIF(Resultatuppföljning!$C$4:C434,Resultatuppföljning!C434)","v":"0"}]
[null,432,{"$f":"Resultatuppföljning!C435&COUNTIF(Resultatuppföljning!$C$4:C435,Resultatuppföljning!C435)","v":"0"}]
[null,433,{"$f":"Resultatuppföljning!C436&COUNTIF(Resultatuppföljning!$C$4:C436,Resultatuppföljning!C436)","v":"0"}]
[null,434,{"$f":"Resultatuppföljning!C437&COUNTIF(Resultatuppföljning!$C$4:C437,Resultatuppföljning!C437)","v":"0"}]
[null,435,{"$f":"Resultatuppföljning!C438&COUNTIF(Resultatuppföljning!$C$4:C438,Resultatuppföljning!C438)","v":"0"}]
[null,436,{"$f":"Resultatuppföljning!C439&COUNTIF(Resultatuppföljning!$C$4:C439,Resultatuppföljning!C439)","v":"0"}]
[null,437,{"$f":"Resultatuppföljning!C440&COUNTIF(Resultatuppföljning!$C$4:C440,Resultatuppföljning!C440)","v":"0"}]
[null,438,{"$f":"Resultatuppföljning!C441&COUNTIF(Resultatuppföljning!$C$4:C441,Resultatuppföljning!C441)","v":"0"}]
[null,439,{"$f":"Resultatuppföljning!C442&COUNTIF(Resultatuppföljning!$C$4:C442,Resultatuppföljning!C442)","v":"0"}]
[null,440,{"$f":"Resultatuppföljning!C443&COUNTIF(Resultatuppföljning!$C$4:C443,Resultatuppföljning!C443)","v":"0"}]
[null,441,{"$f":"Resultatuppföljning!C444&COUNTIF(Resultatuppföljning!$C$4:C444,Resultatuppföljning!C444)","v":"0"}]
[null,442,{"$f":"Resultatuppföljning!C445&COUNTIF(Resultatuppföljning!$C$4:C445,Resultatuppföljning!C445)","v":"0"}]
[null,443,{"$f":"Resultatuppföljning!C446&COUNTIF(Resultatuppföljning!$C$4:C446,Resultatuppföljning!C446)","v":"0"}]
[null,444,{"$f":"Resultatuppföljning!C447&COUNTIF(Resultatuppföljning!$C$4:C447,Resultatuppföljning!C447)","v":"0"}]
[null,445,{"$f":"Resultatuppföljning!C448&COUNTIF(Resultatuppföljning!$C$4:C448,Resultatuppföljning!C448)","v":"0"}]
[null,446,{"$f":"Resultatuppföljning!C449&COUNTIF(Resultatuppföljning!$C$4:C449,Resultatuppföljning!C449)","v":"0"}]
[null,447,{"$f":"Resultatuppföljning!C450&COUNTIF(Resultatuppföljning!$C$4:C450,Resultatuppföljning!C450)","v":"0"}]
[null,448,{"$f":"Resultatuppföljning!C451&COUNTIF(Resultatuppföljning!$C$4:C451,Resultatuppföljning!C451)","v":"0"}]
[null,449,{"$f":"Resultatuppföljning!C452&COUNTIF(Resultatuppföljning!$C$4:C452,Resultatuppföljning!C452)","v":"0"}]
[null,450,{"$f":"Resultatuppföljning!C453&COUNTIF(Resultatuppföljning!$C$4:C453,Resultatuppföljning!C453)","v":"0"}]
[null,451,{"$f":"Resultatuppföljning!C454&COUNTIF(Resultatuppföljning!$C$4:C454,Resultatuppföljning!C454)","v":"0"}]
[null,452,{"$f":"Resultatuppföljning!C455&COUNTIF(Resultatuppföljning!$C$4:C455,Resultatuppföljning!C455)","v":"0"}]
[null,453,{"$f":"Resultatuppföljning!C456&COUNTIF(Resultatuppföljning!$C$4:C456,Resultatuppföljning!C456)","v":"0"}]
[null,454,{"$f":"Resultatuppföljning!C457&COUNTIF(Resultatuppföljning!$C$4:C457,Resultatuppföljning!C457)","v":"0"}]
[null,455,{"$f":"Resultatuppföljning!C458&COUNTIF(Resultatuppföljning!$C$4:C458,Resultatuppföljning!C458)","v":"0"}]
[null,456,{"$f":"Resultatuppföljning!C459&COUNTIF(Resultatuppföljning!$C$4:C459,Resultatuppföljning!C459)","v":"0"}]
[null,457,{"$f":"Resultatuppföljning!C460&COUNTIF(Resultatuppföljning!$C$4:C460,Resultatuppföljning!C460)","v":"0"}]
[null,458,{"$f":"Resultatuppföljning!C461&COUNTIF(Resultatuppföljning!$C$4:C461,Resultatuppföljning!C461)","v":"0"}]
[null,459,{"$f":"Resultatuppföljning!C462&COUNTIF(Resultatuppföljning!$C$4:C462,Resultatuppföljning!C462)","v":"0"}]
[null,460,{"$f":"Resultatuppföljning!C463&COUNTIF(Resultatuppföljning!$C$4:C463,Resultatuppföljning!C463)","v":"0"}]
[null,461,{"$f":"Resultatuppföljning!C464&COUNTIF(Resultatuppföljning!$C$4:C464,Resultatuppföljning!C464)","v":"0"}]
[null,462,{"$f":"Resultatuppföljning!C465&COUNTIF(Resultatuppföljning!$C$4:C465,Resultatuppföljning!C465)","v":"0"}]
[null,463,{"$f":"Resultatuppföljning!C466&COUNTIF(Resultatuppföljning!$C$4:C466,Resultatuppföljning!C466)","v":"0"}]
[null,464,{"$f":"Resultatuppföljning!C467&COUNTIF(Resultatuppföljning!$C$4:C467,Resultatuppföljning!C467)","v":"0"}]
[null,465,{"$f":"Resultatuppföljning!C468&COUNTIF(Resultatuppföljning!$C$4:C468,Resultatuppföljning!C468)","v":"0"}]
[null,466,{"$f":"Resultatuppföljning!C469&COUNTIF(Resultatuppföljning!$C$4:C469,Resultatuppföljning!C469)","v":"0"}]
[null,467,{"$f":"Resultatuppföljning!C470&COUNTIF(Resultatuppföljning!$C$4:C470,Resultatuppföljning!C470)","v":"0"}]
[null,468,{"$f":"Resultatuppföljning!C471&COUNTIF(Resultatuppföljning!$C$4:C471,Resultatuppföljning!C471)","v":"0"}]
[null,469,{"$f":"Resultatuppföljning!C472&COUNTIF(Resultatuppföljning!$C$4:C472,Resultatuppföljning!C472)","v":"0"}]
[null,470,{"$f":"Resultatuppföljning!C473&COUNTIF(Resultatuppföljning!$C$4:C473,Resultatuppföljning!C473)","v":"0"}]
[null,471,{"$f":"Resultatuppföljning!C474&COUNTIF(Resultatuppföljning!$C$4:C474,Resultatuppföljning!C474)","v":"0"}]
[null,472,{"$f":"Resultatuppföljning!C475&COUNTIF(Resultatuppföljning!$C$4:C475,Resultatuppföljning!C475)","v":"0"}]
[null,473,{"$f":"Resultatuppföljning!C476&COUNTIF(Resultatuppföljning!$C$4:C476,Resultatuppföljning!C476)","v":"0"}]
[null,474,{"$f":"Resultatuppföljning!C477&COUNTIF(Resultatuppföljning!$C$4:C477,Resultatuppföljning!C477)","v":"0"}]
[null,475,{"$f":"Resultatuppföljning!C478&COUNTIF(Resultatuppföljning!$C$4:C478,Resultatuppföljning!C478)","v":"0"}]
[null,476,{"$f":"Resultatuppföljning!C479&COUNTIF(Resultatuppföljning!$C$4:C479,Resultatuppföljning!C479)","v":"0"}]
[null,477,{"$f":"Resultatuppföljning!C480&COUNTIF(Resultatuppföljning!$C$4:C480,Resultatuppföljning!C480)","v":"0"}]
[null,478,{"$f":"Resultatuppföljning!C481&COUNTIF(Resultatuppföljning!$C$4:C481,Resultatuppföljning!C481)","v":"0"}]
[null,479,{"$f":"Resultatuppföljning!C482&COUNTIF(Resultatuppföljning!$C$4:C482,Resultatuppföljning!C482)","v":"0"}]
[null,480,{"$f":"Resultatuppföljning!C483&COUNTIF(Resultatuppföljning!$C$4:C483,Resultatuppföljning!C483)","v":"0"}]
[null,481,{"$f":"Resultatuppföljning!C484&COUNTIF(Resultatuppföljning!$C$4:C484,Resultatuppföljning!C484)","v":"0"}]
[null,482,{"$f":"Resultatuppföljning!C485&COUNTIF(Resultatuppföljning!$C$4:C485,Resultatuppföljning!C485)","v":"0"}]
[null,483,{"$f":"Resultatuppföljning!C486&COUNTIF(Resultatuppföljning!$C$4:C486,Resultatuppföljning!C486)","v":"0"}]
[null,484,{"$f":"Resultatuppföljning!C487&COUNTIF(Resultatuppföljning!$C$4:C487,Resultatuppföljning!C487)","v":"0"}]
[null,485,{"$f":"Resultatuppföljning!C488&COUNTIF(Resultatuppföljning!$C$4:C488,Resultatuppföljning!C488)","v":"0"}]
[null,486,{"$f":"Resultatuppföljning!C489&COUNTIF(Resultatuppföljning!$C$4:C489,Resultatuppföljning!C489)","v":"0"}]
[null,487,{"$f":"Resultatuppföljning!C490&COUNTIF(Resultatuppföljning!$C$4:C490,Resultatuppföljning!C490)","v":"0"}]
[null,488,{"$f":"Resultatuppföljning!C491&COUNTIF(Resultatuppföljning!$C$4:C491,Resultatuppföljning!C491)","v":"0"}]
[null,489,{"$f":"Resultatuppföljning!C492&COUNTIF(Resultatuppföljning!$C$4:C492,Resultatuppföljning!C492)","v":"0"}]
[null,490,{"$f":"Resultatuppföljning!C493&COUNTIF(Resultatuppföljning!$C$4:C493,Resultatuppföljning!C493)","v":"0"}]
[null,491,{"$f":"Resultatuppföljning!C494&COUNTIF(Resultatuppföljning!$C$4:C494,Resultatuppföljning!C494)","v":"0"}]
[null,492,{"$f":"Resultatuppföljning!C495&COUNTIF(Resultatuppföljning!$C$4:C495,Resultatuppföljning!C495)","v":"0"}]
[null,493,{"$f":"Resultatuppföljning!C496&COUNTIF(Resultatuppföljning!$C$4:C496,Resultatuppföljning!C496)","v":"0"}]
[null,494,{"$f":"Resultatuppföljning!C497&COUNTIF(Resultatuppföljning!$C$4:C497,Resultatuppföljning!C497)","v":"0"}]
[null,495,{"$f":"Resultatuppföljning!C498&COUNTIF(Resultatuppföljning!$C$4:C498,Resultatuppföljning!C498)","v":"0"}]
[null,496,{"$f":"Resultatuppföljning!C499&COUNTIF(Resultatuppföljning!$C$4:C499,Resultatuppföljning!C499)","v":"0"}]
[null,497,{"$f":"Resultatuppföljning!C500&COUNTIF(Resultatuppföljning!$C$4:C500,Resultatuppföljning!C500)","v":"0"}]
[null,498,{"$f":"Resultatuppföljning!C501&COUNTIF(Resultatuppföljning!$C$4:C501,Resultatuppföljning!C501)","v":"0"}]
[null,499,{"$f":"Resultatuppföljning!C502&COUNTIF(Resultatuppföljning!$C$4:C502,Resultatuppföljning!C502)","v":"0"}]
[null,500,{"$f":"Resultatuppföljning!C503&COUNTIF(Resultatuppföljning!$C$4:C503,Resultatuppföljning!C503)","v":"0"}]
[null,501,{"$f":"Resultatuppföljning!C504&COUNTIF(Resultatuppföljning!$C$4:C504,Resultatuppföljning!C504)","v":"0"}]
[null,502,{"$f":"Resultatuppföljning!C505&COUNTIF(Resultatuppföljning!$C$4:C505,Resultatuppföljning!C505)","v":"0"}]
[null,503,{"$f":"Resultatuppföljning!C506&COUNTIF(Resultatuppföljning!$C$4:C506,Resultatuppföljning!C506)","v":"0"}]
[null,504,{"$f":"Resultatuppföljning!C507&COUNTIF(Resultatuppföljning!$C$4:C507,Resultatuppföljning!C507)","v":"0"}]
[null,505,{"$f":"Resultatuppföljning!C508&COUNTIF(Resultatuppföljning!$C$4:C508,Resultatuppföljning!C508)","v":"0"}]
[null,506,{"$f":"Resultatuppföljning!C509&COUNTIF(Resultatuppföljning!$C$4:C509,Resultatuppföljning!C509)","v":"0"}]
[null,507,{"$f":"Resultatuppföljning!C510&COUNTIF(Resultatuppföljning!$C$4:C510,Resultatuppföljning!C510)","v":"0"}]
[null,508,{"$f":"Resultatuppföljning!C511&COUNTIF(Resultatuppföljning!$C$4:C511,Resultatuppföljning!C511)","v":"0"}]
[null,509,{"$f":"Resultatuppföljning!C512&COUNTIF(Resultatuppföljning!$C$4:C512,Resultatuppföljning!C512)","v":"0"}]
[null,510,{"$f":"Resultatuppföljning!C513&COUNTIF(Resultatuppföljning!$C$4:C513,Resultatuppföljning!C513)","v":"0"}]
[null,511,{"$f":"Resultatuppföljning!C514&COUNTIF(Resultatuppföljning!$C$4:C514,Resultatuppföljning!C514)","v":"0"}]
[null,512,{"$f":"Resultatuppföljning!C515&COUNTIF(Resultatuppföljning!$C$4:C515,Resultatuppföljning!C515)","v":"0"}]
[null,513,{"$f":"Resultatuppföljning!C516&COUNTIF(Resultatuppföljning!$C$4:C516,Resultatuppföljning!C516)","v":"0"}]
[null,514,{"$f":"Resultatuppföljning!C517&COUNTIF(Resultatuppföljning!$C$4:C517,Resultatuppföljning!C517)","v":"0"}]
[null,515,{"$f":"Resultatuppföljning!C518&COUNTIF(Resultatuppföljning!$C$4:C518,Resultatuppföljning!C518)","v":"0"}]
[null,516,{"$f":"Resultatuppföljning!C519&COUNTIF(Resultatuppföljning!$C$4:C519,Resultatuppföljning!C519)","v":"0"}]
[null,517,{"$f":"Resultatuppföljning!C520&COUNTIF(Resultatuppföljning!$C$4:C520,Resultatuppföljning!C520)","v":"0"}]
[null,518,{"$f":"Resultatuppföljning!C521&COUNTIF(Resultatuppföljning!$C$4:C521,Resultatuppföljning!C521)","v":"0"}]
[null,519,{"$f":"Resultatuppföljning!C522&COUNTIF(Resultatuppföljning!$C$4:C522,Resultatuppföljning!C522)","v":"0"}]
[null,520,{"$f":"Resultatuppföljning!C523&COUNTIF(Resultatuppföljning!$C$4:C523,Resultatuppföljning!C523)","v":"0"}]
[null,521,{"$f":"Resultatuppföljning!C524&COUNTIF(Resultatuppföljning!$C$4:C524,Resultatuppföljning!C524)","v":"0"}]
[null,522,{"$f":"Resultatuppföljning!C525&COUNTIF(Resultatuppföljning!$C$4:C525,Resultatuppföljning!C525)","v":"0"}]
[null,523,{"$f":"Resultatuppföljning!C526&COUNTIF(Resultatuppföljning!$C$4:C526,Resultatuppföljning!C526)","v":"0"}]
[null,524,{"$f":"Resultatuppföljning!C527&COUNTIF(Resultatuppföljning!$C$4:C527,Resultatuppföljning!C527)","v":"0"}]
[null,525,{"$f":"Resultatuppföljning!C528&COUNTIF(Resultatuppföljning!$C$4:C528,Resultatuppföljning!C528)","v":"0"}]
[null,526,{"$f":"Resultatuppföljning!C529&COUNTIF(Resultatuppföljning!$C$4:C529,Resultatuppföljning!C529)","v":"0"}]
[null,527,{"$f":"Resultatuppföljning!C530&COUNTIF(Resultatuppföljning!$C$4:C530,Resultatuppföljning!C530)","v":"0"}]
[null,528,{"$f":"Resultatuppföljning!C531&COUNTIF(Resultatuppföljning!$C$4:C531,Resultatuppföljning!C531)","v":"0"}]
[null,529,{"$f":"Resultatuppföljning!C532&COUNTIF(Resultatuppföljning!$C$4:C532,Resultatuppföljning!C532)","v":"0"}]
[null,530,{"$f":"Resultatuppföljning!C533&COUNTIF(Resultatuppföljning!$C$4:C533,Resultatuppföljning!C533)","v":"0"}]
[null,531,{"$f":"Resultatuppföljning!C534&COUNTIF(Resultatuppföljning!$C$4:C534,Resultatuppföljning!C534)","v":"0"}]
[null,532,{"$f":"Resultatuppföljning!C535&COUNTIF(Resultatuppföljning!$C$4:C535,Resultatuppföljning!C535)","v":"0"}]
[null,533,{"$f":"Resultatuppföljning!C536&COUNTIF(Resultatuppföljning!$C$4:C536,Resultatuppföljning!C536)","v":"0"}]
[null,534,{"$f":"Resultatuppföljning!C537&COUNTIF(Resultatuppföljning!$C$4:C537,Resultatuppföljning!C537)","v":"0"}]
[null,535,{"$f":"Resultatuppföljning!C538&COUNTIF(Resultatuppföljning!$C$4:C538,Resultatuppföljning!C538)","v":"0"}]
[null,536,{"$f":"Resultatuppföljning!C539&COUNTIF(Resultatuppföljning!$C$4:C539,Resultatuppföljning!C539)","v":"0"}]
[null,537,{"$f":"Resultatuppföljning!C540&COUNTIF(Resultatuppföljning!$C$4:C540,Resultatuppföljning!C540)","v":"0"}]
[null,538,{"$f":"Resultatuppföljning!C541&COUNTIF(Resultatuppföljning!$C$4:C541,Resultatuppföljning!C541)","v":"0"}]
[null,539,{"$f":"Resultatuppföljning!C542&COUNTIF(Resultatuppföljning!$C$4:C542,Resultatuppföljning!C542)","v":"0"}]
[null,540,{"$f":"Resultatuppföljning!C543&COUNTIF(Resultatuppföljning!$C$4:C543,Resultatuppföljning!C543)","v":"0"}]
[null,541,{"$f":"Resultatuppföljning!C544&COUNTIF(Resultatuppföljning!$C$4:C544,Resultatuppföljning!C544)","v":"0"}]
[null,542,{"$f":"Resultatuppföljning!C545&COUNTIF(Resultatuppföljning!$C$4:C545,Resultatuppföljning!C545)","v":"0"}]
[null,543,{"$f":"Resultatuppföljning!C546&COUNTIF(Resultatuppföljning!$C$4:C546,Resultatuppföljning!C546)","v":"0"}]
[null,544,{"$f":"Resultatuppföljning!C547&COUNTIF(Resultatuppföljning!$C$4:C547,Resultatuppföljning!C547)","v":"0"}]
[null,545,{"$f":"Resultatuppföljning!C548&COUNTIF(Resultatuppföljning!$C$4:C548,Resultatuppföljning!C548)","v":"0"}]
[null,546,{"$f":"Resultatuppföljning!C549&COUNTIF(Resultatuppföljning!$C$4:C549,Resultatuppföljning!C549)","v":"0"}]
[null,547,{"$f":"Resultatuppföljning!C550&COUNTIF(Resultatuppföljning!$C$4:C550,Resultatuppföljning!C550)","v":"0"}]
[null,548,{"$f":"Resultatuppföljning!C551&COUNTIF(Resultatuppföljning!$C$4:C551,Resultatuppföljning!C551)","v":"0"}]
[null,549,{"$f":"Resultatuppföljning!C552&COUNTIF(Resultatuppföljning!$C$4:C552,Resultatuppföljning!C552)","v":"0"}]
[null,550,{"$f":"Resultatuppföljning!C553&COUNTIF(Resultatuppföljning!$C$4:C553,Resultatuppföljning!C553)","v":"0"}]
[null,551,{"$f":"Resultatuppföljning!C554&COUNTIF(Resultatuppföljning!$C$4:C554,Resultatuppföljning!C554)","v":"0"}]
[null,552,{"$f":"Resultatuppföljning!C555&COUNTIF(Resultatuppföljning!$C$4:C555,Resultatuppföljning!C555)","v":"0"}]
[null,553,{"$f":"Resultatuppföljning!C556&COUNTIF(Resultatuppföljning!$C$4:C556,Resultatuppföljning!C556)","v":"0"}]
[null,554,{"$f":"Resultatuppföljning!C557&COUNTIF(Resultatuppföljning!$C$4:C557,Resultatuppföljning!C557)","v":"0"}]
[null,555,{"$f":"Resultatuppföljning!C558&COUNTIF(Resultatuppföljning!$C$4:C558,Resultatuppföljning!C558)","v":"0"}]
[null,556,{"$f":"Resultatuppföljning!C559&COUNTIF(Resultatuppföljning!$C$4:C559,Resultatuppföljning!C559)","v":"0"}]
[null,557,{"$f":"Resultatuppföljning!C560&COUNTIF(Resultatuppföljning!$C$4:C560,Resultatuppföljning!C560)","v":"0"}]
[null,558,{"$f":"Resultatuppföljning!C561&COUNTIF(Resultatuppföljning!$C$4:C561,Resultatuppföljning!C561)","v":"0"}]
[null,559,{"$f":"Resultatuppföljning!C562&COUNTIF(Resultatuppföljning!$C$4:C562,Resultatuppföljning!C562)","v":"0"}]
[null,560,{"$f":"Resultatuppföljning!C563&COUNTIF(Resultatuppföljning!$C$4:C563,Resultatuppföljning!C563)","v":"0"}]
[null,561,{"$f":"Resultatuppföljning!C564&COUNTIF(Resultatuppföljning!$C$4:C564,Resultatuppföljning!C564)","v":"0"}]
[null,562,{"$f":"Resultatuppföljning!C565&COUNTIF(Resultatuppföljning!$C$4:C565,Resultatuppföljning!C565)","v":"0"}]
[null,563,{"$f":"Resultatuppföljning!C566&COUNTIF(Resultatuppföljning!$C$4:C566,Resultatuppföljning!C566)","v":"0"}]
[null,564,{"$f":"Resultatuppföljning!C567&COUNTIF(Resultatuppföljning!$C$4:C567,Resultatuppföljning!C567)","v":"0"}]
[null,565,{"$f":"Resultatuppföljning!C568&COUNTIF(Resultatuppföljning!$C$4:C568,Resultatuppföljning!C568)","v":"0"}]
[null,566,{"$f":"Resultatuppföljning!C569&COUNTIF(Resultatuppföljning!$C$4:C569,Resultatuppföljning!C569)","v":"0"}]
[null,567,{"$f":"Resultatuppföljning!C570&COUNTIF(Resultatuppföljning!$C$4:C570,Resultatuppföljning!C570)","v":"0"}]
[null,568,{"$f":"Resultatuppföljning!C571&COUNTIF(Resultatuppföljning!$C$4:C571,Resultatuppföljning!C571)","v":"0"}]
[null,569,{"$f":"Resultatuppföljning!C572&COUNTIF(Resultatuppföljning!$C$4:C572,Resultatuppföljning!C572)","v":"0"}]
[null,570,{"$f":"Resultatuppföljning!C573&COUNTIF(Resultatuppföljning!$C$4:C573,Resultatuppföljning!C573)","v":"0"}]
[null,571,{"$f":"Resultatuppföljning!C574&COUNTIF(Resultatuppföljning!$C$4:C574,Resultatuppföljning!C574)","v":"0"}]
[null,572,{"$f":"Resultatuppföljning!C575&COUNTIF(Resultatuppföljning!$C$4:C575,Resultatuppföljning!C575)","v":"0"}]
[null,573,{"$f":"Resultatuppföljning!C576&COUNTIF(Resultatuppföljning!$C$4:C576,Resultatuppföljning!C576)","v":"0"}]
[null,574,{"$f":"Resultatuppföljning!C577&COUNTIF(Resultatuppföljning!$C$4:C577,Resultatuppföljning!C577)","v":"0"}]
[null,575,{"$f":"Resultatuppföljning!C578&COUNTIF(Resultatuppföljning!$C$4:C578,Resultatuppföljning!C578)","v":"0"}]
[null,576,{"$f":"Resultatuppföljning!C579&COUNTIF(Resultatuppföljning!$C$4:C579,Resultatuppföljning!C579)","v":"0"}]
[null,577,{"$f":"Resultatuppföljning!C580&COUNTIF(Resultatuppföljning!$C$4:C580,Resultatuppföljning!C580)","v":"0"}]
[null,578,{"$f":"Resultatuppföljning!C581&COUNTIF(Resultatuppföljning!$C$4:C581,Resultatuppföljning!C581)","v":"0"}]
[null,579,{"$f":"Resultatuppföljning!C582&COUNTIF(Resultatuppföljning!$C$4:C582,Resultatuppföljning!C582)","v":"0"}]
[null,580,{"$f":"Resultatuppföljning!C583&COUNTIF(Resultatuppföljning!$C$4:C583,Resultatuppföljning!C583)","v":"0"}]
[null,581,{"$f":"Resultatuppföljning!C584&COUNTIF(Resultatuppföljning!$C$4:C584,Resultatuppföljning!C584)","v":"0"}]
[null,582,{"$f":"Resultatuppföljning!C585&COUNTIF(Resultatuppföljning!$C$4:C585,Resultatuppföljning!C585)","v":"0"}]
[null,583,{"$f":"Resultatuppföljning!C586&COUNTIF(Resultatuppföljning!$C$4:C586,Resultatuppföljning!C586)","v":"0"}]
[null,584,{"$f":"Resultatuppföljning!C587&COUNTIF(Resultatuppföljning!$C$4:C587,Resultatuppföljning!C587)","v":"0"}]
[null,585,{"$f":"Resultatuppföljning!C588&COUNTIF(Resultatuppföljning!$C$4:C588,Resultatuppföljning!C588)","v":"0"}]
[null,586,{"$f":"Resultatuppföljning!C589&COUNTIF(Resultatuppföljning!$C$4:C589,Resultatuppföljning!C589)","v":"0"}]
[null,587,{"$f":"Resultatuppföljning!C590&COUNTIF(Resultatuppföljning!$C$4:C590,Resultatuppföljning!C590)","v":"0"}]
[null,588,{"$f":"Resultatuppföljning!C591&COUNTIF(Resultatuppföljning!$C$4:C591,Resultatuppföljning!C591)","v":"0"}]
[null,589,{"$f":"Resultatuppföljning!C592&COUNTIF(Resultatuppföljning!$C$4:C592,Resultatuppföljning!C592)","v":"0"}]
[null,590,{"$f":"Resultatuppföljning!C593&COUNTIF(Resultatuppföljning!$C$4:C593,Resultatuppföljning!C593)","v":"0"}]
[null,591,{"$f":"Resultatuppföljning!C594&COUNTIF(Resultatuppföljning!$C$4:C594,Resultatuppföljning!C594)","v":"0"}]
[null,592,{"$f":"Resultatuppföljning!C595&COUNTIF(Resultatuppföljning!$C$4:C595,Resultatuppföljning!C595)","v":"0"}]
[null,593,{"$f":"Resultatuppföljning!C596&COUNTIF(Resultatuppföljning!$C$4:C596,Resultatuppföljning!C596)","v":"0"}]
[null,594,{"$f":"Resultatuppföljning!C597&COUNTIF(Resultatuppföljning!$C$4:C597,Resultatuppföljning!C597)","v":"0"}]
[null,595,{"$f":"Resultatuppföljning!C598&COUNTIF(Resultatuppföljning!$C$4:C598,Resultatuppföljning!C598)","v":"0"}]
[null,596,{"$f":"Resultatuppföljning!C599&COUNTIF(Resultatuppföljning!$C$4:C599,Resultatuppföljning!C599)","v":"0"}]
[null,597,{"$f":"Resultatuppföljning!C600&COUNTIF(Resultatuppföljning!$C$4:C600,Resultatuppföljning!C600)","v":"0"}]
[null,598,{"$f":"Resultatuppföljning!C601&COUNTIF(Resultatuppföljning!$C$4:C601,Resultatuppföljning!C601)","v":"0"}]
[null,599,{"$f":"Resultatuppföljning!C602&COUNTIF(Resultatuppföljning!$C$4:C602,Resultatuppföljning!C602)","v":"0"}]
[null,600,{"$f":"Resultatuppföljning!C603&COUNTIF(Resultatuppföljning!$C$4:C603,Resultatuppföljning!C603)","v":"0"}]
[null,601,{"$f":"Resultatuppföljning!C604&COUNTIF(Resultatuppföljning!$C$4:C604,Resultatuppföljning!C604)","v":"0"}]
[null,602,{"$f":"Resultatuppföljning!C605&COUNTIF(Resultatuppföljning!$C$4:C605,Resultatuppföljning!C605)","v":"0"}]
[null,603,{"$f":"Resultatuppföljning!C606&COUNTIF(Resultatuppföljning!$C$4:C606,Resultatuppföljning!C606)","v":"0"}]
[null,604,{"$f":"Resultatuppföljning!C607&COUNTIF(Resultatuppföljning!$C$4:C607,Resultatuppföljning!C607)","v":"0"}]
[null,605,{"$f":"Resultatuppföljning!C608&COUNTIF(Resultatuppföljning!$C$4:C608,Resultatuppföljning!C608)","v":"0"}]
[null,606,{"$f":"Resultatuppföljning!C609&COUNTIF(Resultatuppföljning!$C$4:C609,Resultatuppföljning!C609)","v":"0"}]
[null,607,{"$f":"Resultatuppföljning!C610&COUNTIF(Resultatuppföljning!$C$4:C610,Resultatuppföljning!C610)","v":"0"}]
[null,608,{"$f":"Resultatuppföljning!C611&COUNTIF(Resultatuppföljning!$C$4:C611,Resultatuppföljning!C611)","v":"0"}]
[null,609,{"$f":"Resultatuppföljning!C612&COUNTIF(Resultatuppföljning!$C$4:C612,Resultatuppföljning!C612)","v":"0"}]
[null,610,{"$f":"Resultatuppföljning!C613&COUNTIF(Resultatuppföljning!$C$4:C613,Resultatuppföljning!C613)","v":"0"}]
[null,611,{"$f":"Resultatuppföljning!C614&COUNTIF(Resultatuppföljning!$C$4:C614,Resultatuppföljning!C614)","v":"0"}]
[null,612,{"$f":"Resultatuppföljning!C615&COUNTIF(Resultatuppföljning!$C$4:C615,Resultatuppföljning!C615)","v":"0"}]
[null,613,{"$f":"Resultatuppföljning!C616&COUNTIF(Resultatuppföljning!$C$4:C616,Resultatuppföljning!C616)","v":"0"}]
[null,614,{"$f":"Resultatuppföljning!C617&COUNTIF(Resultatuppföljning!$C$4:C617,Resultatuppföljning!C617)","v":"0"}]
[null,615,{"$f":"Resultatuppföljning!C618&COUNTIF(Resultatuppföljning!$C$4:C618,Resultatuppföljning!C618)","v":"0"}]
[null,616,{"$f":"Resultatuppföljning!C619&COUNTIF(Resultatuppföljning!$C$4:C619,Resultatuppföljning!C619)","v":"0"}]
[null,617,{"$f":"Resultatuppföljning!C620&COUNTIF(Resultatuppföljning!$C$4:C620,Resultatuppföljning!C620)","v":"0"}]
[null,618,{"$f":"Resultatuppföljning!C621&COUNTIF(Resultatuppföljning!$C$4:C621,Resultatuppföljning!C621)","v":"0"}]
[null,619,{"$f":"Resultatuppföljning!C622&COUNTIF(Resultatuppföljning!$C$4:C622,Resultatuppföljning!C622)","v":"0"}]
[null,620,{"$f":"Resultatuppföljning!C623&COUNTIF(Resultatuppföljning!$C$4:C623,Resultatuppföljning!C623)","v":"0"}]
[null,621,{"$f":"Resultatuppföljning!C624&COUNTIF(Resultatuppföljning!$C$4:C624,Resultatuppföljning!C624)","v":"0"}]
[null,622,{"$f":"Resultatuppföljning!C625&COUNTIF(Resultatuppföljning!$C$4:C625,Resultatuppföljning!C625)","v":"0"}]
[null,623,{"$f":"Resultatuppföljning!C626&COUNTIF(Resultatuppföljning!$C$4:C626,Resultatuppföljning!C626)","v":"0"}]
[null,624,{"$f":"Resultatuppföljning!C627&COUNTIF(Resultatuppföljning!$C$4:C627,Resultatuppföljning!C627)","v":"0"}]
[null,625,{"$f":"Resultatuppföljning!C628&COUNTIF(Resultatuppföljning!$C$4:C628,Resultatuppföljning!C628)","v":"0"}]